﻿Body Name ,Supp ID,,Supplier Name,Service Area Category ,Supp Grp,Period,Invoice Date,TT,Unique Invoice Reference,,Inv Amount,Account,Expenditure Description ,Cost C,Cost Centre Name,Posted Amount
Nottinghamshire Fire and Rescue Service ,101335,Nottingham Trent University,Nottingham Trent University,Management & Support Services,1,202308,14/07/2022,P6,9103351,"-10,605.00 ","10,605.00 ",1005,Admin Agency Staff,2079,Planning and Programmes,"10,605.00 "
Nottinghamshire Fire and Rescue Service ,101001,Express Recruitment Ltd,Express Recruitment Ltd,Management & Support Services,1,202308,09/11/2022,P6,9103427,-535.75 ,535.75 ,1005,Admin Agency Staff,2087,Estates Department (Previously Premises),446.46 
Nottinghamshire Fire and Rescue Service ,103371,Nottinghamshire Healthcare NHS Trust,Nottinghamshire Healthcare NHS Trust,Management & Support Services,5,202308,23/11/2022,P6,9103563,"-4,592.72 ","4,592.72 ",1005,Admin Agency Staff,2068,Prevention,"4,592.72 "
Nottinghamshire Fire and Rescue Service ,101001,Express Recruitment Ltd,Express Recruitment Ltd,Management & Support Services,1,202308,16/11/2022,P6,9103569,-711.00 ,711.00 ,1005,Admin Agency Staff,2087,Estates Department (Previously Premises),592.50 
Nottinghamshire Fire and Rescue Service ,101001,Express Recruitment Ltd,Express Recruitment Ltd,Management & Support Services,1,202308,23/11/2022,P6,9103613,-753.60 ,753.60 ,1005,Admin Agency Staff,2087,Estates Department (Previously Premises),628.00 
Nottinghamshire Fire and Rescue Service ,101645,Ricardo-AEA Ltd,Ricardo-AEA Ltd,Management & Support Services,1,202308,28/10/2022,P6,9103301,"-2,988.00 ","2,988.00 ",1801,Training,2059,Corporate Training,285.00 
Nottinghamshire Fire and Rescue Service ,101645,Ricardo-AEA Ltd,Ricardo-AEA Ltd,Management & Support Services,1,202308,28/10/2022,P6,9103301,"-2,988.00 ","2,988.00 ",1801,Training,2059,Corporate Training,"2,205.00 "
Nottinghamshire Fire and Rescue Service ,103869,Shelagh Roberts,Shelagh Roberts,Management & Support Services,5,202308,23/10/2022,P6,9103311,-300.00 ,300.00 ,1801,Training,2054,Equalities Team,300.00 
Nottinghamshire Fire and Rescue Service ,102123,The Institution Of Fire Engineers,The Institution Of Fire Engineers,Management & Support Services,1,202308,28/10/2022,P6,9103319,-587.00 ,587.00 ,1801,Training,2059,Corporate Training,581.13 
Nottinghamshire Fire and Rescue Service ,104168,ioda Limited,ioda Limited,Management & Support Services,5,202308,31/10/2022,P6,9103320,-594.00 ,594.00 ,1801,Training,2054,Equalities Team,495.00 
Nottinghamshire Fire and Rescue Service ,102123,The Institution Of Fire Engineers,The Institution Of Fire Engineers,Management & Support Services,1,202308,31/10/2022,P6,9103321,-443.00 ,443.00 ,1801,Training,2059,Corporate Training,443.00 
Nottinghamshire Fire and Rescue Service ,102124,East Midlands Councils,East Midlands Councils,Management & Support Services,1,202308,21/10/2022,P6,9103324,"-1,200.00 ","1,200.00 ",1801,Training,2054,Equalities Team,"1,000.00 "
Nottinghamshire Fire and Rescue Service ,100778,Fire Service College Ltd,Fire Service College Ltd,Prevention and Education ,4,202308,04/11/2022,P6,9103330,"-3,348.00 ","3,348.00 ",1801,Training,2026,Fire Investigation,"2,790.00 "
Nottinghamshire Fire and Rescue Service ,103197,Legal Experience Training Limited,Legal Experience Training Limited,Prevention and Education ,5,202308,04/11/2022,P6,9103331,"-1,348.14 ","1,348.14 ",1801,Training,2026,Fire Investigation,"1,123.45 "
Nottinghamshire Fire and Rescue Service ,100778,Fire Service College Ltd,Fire Service College Ltd,Prevention and Education ,4,202308,04/11/2022,P6,9103350,"-3,348.00 ","3,348.00 ",1801,Training,2026,Fire Investigation,"2,790.00 "
Nottinghamshire Fire and Rescue Service ,100778,Fire Service College Ltd,Fire Service College Ltd,Prevention and Education ,4,202308,04/11/2022,P6,9103369,"-3,348.00 ","3,348.00 ",1801,Training,2026,Fire Investigation,"2,390.00 "
Nottinghamshire Fire and Rescue Service ,104134,Xact Consultancy & Training Limited,Xact Consultancy & Training Limited,"Statutory Inspection, Certification & Enforcement",5,202308,09/11/2022,P6,9103396,"-2,268.00 ","2,268.00 ",1801,Training,2021,Fire Protection,630.00 
Nottinghamshire Fire and Rescue Service ,101847,The Outreach Organisation Limited,The Outreach Organisation Limited,Management & Support Services,1,202308,11/11/2022,P6,9103442,"-2,976.00 ","2,976.00 ",1801,Training,2059,Corporate Training,"1,240.00 "
Nottinghamshire Fire and Rescue Service ,103646,Martyn Humphreys - Gwyndwr Rescue Safety & Training,Martyn Humphreys - Gwyndwr Rescue Safety & Training,Management & Support Services,5,202308,31/10/2022,P6,9103454,"-3,000.00 ","3,000.00 ",1801,Training,2059,Corporate Training,"3,000.00 "
Nottinghamshire Fire and Rescue Service ,103646,Martyn Humphreys - Gwyndwr Rescue Safety & Training,Martyn Humphreys - Gwyndwr Rescue Safety & Training,Management & Support Services,5,202308,30/09/2022,P6,9103464,"-1,422.50 ","1,422.50 ",1801,Training,2059,Corporate Training,348.50 
Nottinghamshire Fire and Rescue Service ,103646,Martyn Humphreys - Gwyndwr Rescue Safety & Training,Martyn Humphreys - Gwyndwr Rescue Safety & Training,Management & Support Services,5,202308,30/09/2022,P6,9103464,"-1,422.50 ","1,422.50 ",1801,Training,2059,Corporate Training,"1,074.00 "
Nottinghamshire Fire and Rescue Service ,101817,RCES (UK) Ltd,RCES (UK) Ltd,Management & Support Services,1,202308,14/11/2022,P6,9103467,"-4,140.00 ","4,140.00 ",1801,Training,2059,Corporate Training,"3,450.00 "
Nottinghamshire Fire and Rescue Service ,100167,Karimia Ltd (T/A Radio Dawn),Karimia Ltd (T/A Radio Dawn),Management & Support Services,1,202308,07/11/2022,P6,9103481,"-2,200.00 ","2,200.00 ",1801,Training,2054,Equalities Team,"2,200.00 "
Nottinghamshire Fire and Rescue Service ,104102,United Kingdom Association of Fire Investigators (UKAFI),United Kingdom Association of Fire Investigators (UKAFI),Prevention and Education ,5,202308,17/08/2022,P6,9103490,-767.00 ,767.00 ,1801,Training,2026,Fire Investigation,767.00 
Nottinghamshire Fire and Rescue Service ,103650,Carsington Sports & Leisure Limited,Carsington Sports & Leisure Limited,Management & Support Services,5,202308,17/11/2022,P6,9103506,"-1,125.00 ","1,125.00 ",1801,Training,2059,Corporate Training,187.50 
Nottinghamshire Fire and Rescue Service ,100236,Asian Fire Service Association,Asian Fire Service Association,Management & Support Services,1,202308,18/11/2022,P6,9103518,-250.00 ,250.00 ,1801,Training,2054,Equalities Team,250.00 
Nottinghamshire Fire and Rescue Service ,103094,Draeger Safety UK Limited,Draeger Safety UK Limited,Management & Support Services,5,202308,03/10/2022,P6,9103564,"-5,232.00 ","5,232.00 ",1801,Training,2084,Engineering,"4,360.00 "
Nottinghamshire Fire and Rescue Service ,104246,Chayah Development Project,Chayah Development Project,Management & Support Services,5,202308,10/09/2022,P6,9103429,-350.00 ,350.00 ,1804,Training - Inclusion,2054,Equalities Team,350.00 
Nottinghamshire Fire and Rescue Service ,103377,Flat Fee Recruiter Limited,Flat Fee Recruiter Limited,Management & Support Services,5,202308,21/10/2022,P6,9103419,-597.60 ,597.60 ,1850,Recruitment Advertising,2049,Professional Support,498.00 
Nottinghamshire Fire and Rescue Service ,103377,Flat Fee Recruiter Limited,Flat Fee Recruiter Limited,Management & Support Services,5,202308,18/10/2022,P6,9103421,-298.80 ,298.80 ,1850,Recruitment Advertising,2049,Professional Support,249.00 
Nottinghamshire Fire and Rescue Service ,103377,Flat Fee Recruiter Limited,Flat Fee Recruiter Limited,Management & Support Services,5,202308,28/10/2022,P6,9103422,-597.60 ,597.60 ,1850,Recruitment Advertising,2049,Professional Support,498.00 
Nottinghamshire Fire and Rescue Service ,103923,Bupa UK Insurance Services,Bupa UK Insurance Services,Management & Support Services,5,202308,28/10/2022,P6,9103517,"-3,262.87 ","3,262.87 ",1860,Employee Benefits Schemes,2049,Professional Support,"3,262.87 "
Nottinghamshire Fire and Rescue Service ,103923,Bupa UK Insurance Services,Bupa UK Insurance Services,Management & Support Services,5,202308,29/09/2022,P6,9103615,"-3,254.21 ","3,254.21 ",1860,Employee Benefits Schemes,2049,Professional Support,"3,254.21 "
Nottinghamshire Fire and Rescue Service ,102874,NCC Pension Fund,NCC Pension Fund,Management & Support Services,1,202308,07/10/2022,P6,9103328,"-5,719.20 ","5,719.20 ",1905,Gratuities,1089,Pension Costs met from Revenue,95.46 
Nottinghamshire Fire and Rescue Service ,102874,NCC Pension Fund,NCC Pension Fund,Management & Support Services,1,202308,07/10/2022,P6,9103328,"-5,719.20 ","5,719.20 ",1921,Annual Pensions - Non Uniforms,1089,Pension Costs met from Revenue,"5,623.74 "
Nottinghamshire Fire and Rescue Service ,102280,Amptron Electrical Services,Amptron Electrical Services,Operational Responses,1,202308,31/10/2022,P6,9103391,"-25,544.87 ","25,544.87 ",2000,Buildings Repairs and Maintenance - Reactive,1001,Mansfield,"2,684.80 "
Nottinghamshire Fire and Rescue Service ,102280,Amptron Electrical Services,Amptron Electrical Services,Operational Responses,1,202308,31/10/2022,P6,9103391,"-25,544.87 ","25,544.87 ",2000,Buildings Repairs and Maintenance - Reactive,1002,Blidworth,435.97 
Nottinghamshire Fire and Rescue Service ,102280,Amptron Electrical Services,Amptron Electrical Services,Operational Responses,1,202308,31/10/2022,P6,9103391,"-25,544.87 ","25,544.87 ",2000,Buildings Repairs and Maintenance - Reactive,1003,London Road,"1,640.51 "
Nottinghamshire Fire and Rescue Service ,102280,Amptron Electrical Services,Amptron Electrical Services,Operational Responses,1,202308,31/10/2022,P6,9103391,"-25,544.87 ","25,544.87 ",2000,Buildings Repairs and Maintenance - Reactive,1005,Ashfield,"2,838.19 "
Nottinghamshire Fire and Rescue Service ,102280,Amptron Electrical Services,Amptron Electrical Services,Operational Responses,1,202308,31/10/2022,P6,9103391,"-25,544.87 ","25,544.87 ",2000,Buildings Repairs and Maintenance - Reactive,1006,Edwinstowe,603.17 
Nottinghamshire Fire and Rescue Service ,102280,Amptron Electrical Services,Amptron Electrical Services,Operational Responses,1,202308,31/10/2022,P6,9103391,"-25,544.87 ","25,544.87 ",2000,Buildings Repairs and Maintenance - Reactive,1007,Warsop,144.00 
Nottinghamshire Fire and Rescue Service ,102280,Amptron Electrical Services,Amptron Electrical Services,Operational Responses,1,202308,31/10/2022,P6,9103391,"-25,544.87 ","25,544.87 ",2000,Buildings Repairs and Maintenance - Reactive,1008,Worksop,66.56 
Nottinghamshire Fire and Rescue Service ,102280,Amptron Electrical Services,Amptron Electrical Services,Operational Responses,1,202308,31/10/2022,P6,9103391,"-25,544.87 ","25,544.87 ",2000,Buildings Repairs and Maintenance - Reactive,1010,Harworth,156.00 
Nottinghamshire Fire and Rescue Service ,102280,Amptron Electrical Services,Amptron Electrical Services,Operational Responses,1,202308,31/10/2022,P6,9103391,"-25,544.87 ","25,544.87 ",2000,Buildings Repairs and Maintenance - Reactive,1012,Retford,674.28 
Nottinghamshire Fire and Rescue Service ,102280,Amptron Electrical Services,Amptron Electrical Services,Operational Responses,1,202308,31/10/2022,P6,9103391,"-25,544.87 ","25,544.87 ",2000,Buildings Repairs and Maintenance - Reactive,1013,Tuxford,469.15 
Nottinghamshire Fire and Rescue Service ,102280,Amptron Electrical Services,Amptron Electrical Services,Operational Responses,1,202308,31/10/2022,P6,9103391,"-25,544.87 ","25,544.87 ",2000,Buildings Repairs and Maintenance - Reactive,1015,Collingham,448.56 
Nottinghamshire Fire and Rescue Service ,102280,Amptron Electrical Services,Amptron Electrical Services,Operational Responses,1,202308,31/10/2022,P6,9103391,"-25,544.87 ","25,544.87 ",2000,Buildings Repairs and Maintenance - Reactive,1016,Newark,"1,231.25 "
Nottinghamshire Fire and Rescue Service ,102280,Amptron Electrical Services,Amptron Electrical Services,Operational Responses,1,202308,31/10/2022,P6,9103391,"-25,544.87 ","25,544.87 ",2000,Buildings Repairs and Maintenance - Reactive,1017,Bingham,186.65 
Nottinghamshire Fire and Rescue Service ,102280,Amptron Electrical Services,Amptron Electrical Services,Operational Responses,1,202308,31/10/2022,P6,9103391,"-25,544.87 ","25,544.87 ",2000,Buildings Repairs and Maintenance - Reactive,1019,West Bridgford,"1,316.19 "
Nottinghamshire Fire and Rescue Service ,102280,Amptron Electrical Services,Amptron Electrical Services,Operational Responses,1,202308,31/10/2022,P6,9103391,"-25,544.87 ","25,544.87 ",2000,Buildings Repairs and Maintenance - Reactive,1020,Stockhill,807.73 
Nottinghamshire Fire and Rescue Service ,102280,Amptron Electrical Services,Amptron Electrical Services,Operational Responses,1,202308,31/10/2022,P6,9103391,"-25,544.87 ","25,544.87 ",2000,Buildings Repairs and Maintenance - Reactive,1023,Stapleford,292.97 
Nottinghamshire Fire and Rescue Service ,102280,Amptron Electrical Services,Amptron Electrical Services,Operational Responses,1,202308,31/10/2022,P6,9103391,"-25,544.87 ","25,544.87 ",2000,Buildings Repairs and Maintenance - Reactive,1026,Arnold,948.11 
Nottinghamshire Fire and Rescue Service ,102280,Amptron Electrical Services,Amptron Electrical Services,Operational Responses,1,202308,31/10/2022,P6,9103391,"-25,544.87 ","25,544.87 ",2000,Buildings Repairs and Maintenance - Reactive,1027,Carlton,"2,691.37 "
Nottinghamshire Fire and Rescue Service ,102280,Amptron Electrical Services,Amptron Electrical Services,Operational Responses,1,202308,31/10/2022,P6,9103391,"-25,544.87 ","25,544.87 ",2000,Buildings Repairs and Maintenance - Reactive,1028,East Leake,394.66 
Nottinghamshire Fire and Rescue Service ,102280,Amptron Electrical Services,Amptron Electrical Services,Operational Responses,1,202308,31/10/2022,P6,9103391,"-25,544.87 ","25,544.87 ",2000,Buildings Repairs and Maintenance - Reactive,1029,Highfields Station,"1,349.18 "
Nottinghamshire Fire and Rescue Service ,102280,Amptron Electrical Services,Amptron Electrical Services,Management & Support Services,1,202308,31/10/2022,P6,9103391,"-25,544.87 ","25,544.87 ",2000,Buildings Repairs and Maintenance - Reactive,1030,Service Development Centre,"1,781.37 "
Nottinghamshire Fire and Rescue Service ,102280,Amptron Electrical Services,Amptron Electrical Services,Management & Support Services,1,202308,31/10/2022,P6,9103391,"-25,544.87 ","25,544.87 ",2000,Buildings Repairs and Maintenance - Reactive,1035,Headquarters,126.68 
Nottinghamshire Fire and Rescue Service ,102280,Amptron Electrical Services,Amptron Electrical Services,Operational Responses,1,202308,31/10/2022,P6,9103574,"-58,220.97 ","58,220.97 ",2000,Buildings Repairs and Maintenance - Reactive,1001,Mansfield,"6,979.17 "
Nottinghamshire Fire and Rescue Service ,102280,Amptron Electrical Services,Amptron Electrical Services,Operational Responses,1,202308,31/10/2022,P6,9103574,"-58,220.97 ","58,220.97 ",2000,Buildings Repairs and Maintenance - Reactive,1002,Blidworth,319.61 
Nottinghamshire Fire and Rescue Service ,102280,Amptron Electrical Services,Amptron Electrical Services,Operational Responses,1,202308,31/10/2022,P6,9103574,"-58,220.97 ","58,220.97 ",2000,Buildings Repairs and Maintenance - Reactive,1003,London Road,"5,794.72 "
Nottinghamshire Fire and Rescue Service ,102280,Amptron Electrical Services,Amptron Electrical Services,Operational Responses,1,202308,31/10/2022,P6,9103574,"-58,220.97 ","58,220.97 ",2000,Buildings Repairs and Maintenance - Reactive,1005,Ashfield,"1,569.77 "
Nottinghamshire Fire and Rescue Service ,102280,Amptron Electrical Services,Amptron Electrical Services,Operational Responses,1,202308,31/10/2022,P6,9103574,"-58,220.97 ","58,220.97 ",2000,Buildings Repairs and Maintenance - Reactive,1006,Edwinstowe,"4,439.34 "
Nottinghamshire Fire and Rescue Service ,102280,Amptron Electrical Services,Amptron Electrical Services,Operational Responses,1,202308,31/10/2022,P6,9103574,"-58,220.97 ","58,220.97 ",2000,Buildings Repairs and Maintenance - Reactive,1007,Warsop,"2,579.50 "
Nottinghamshire Fire and Rescue Service ,102280,Amptron Electrical Services,Amptron Electrical Services,Operational Responses,1,202308,31/10/2022,P6,9103574,"-58,220.97 ","58,220.97 ",2000,Buildings Repairs and Maintenance - Reactive,1010,Harworth,"1,226.40 "
Nottinghamshire Fire and Rescue Service ,102280,Amptron Electrical Services,Amptron Electrical Services,Operational Responses,1,202308,31/10/2022,P6,9103574,"-58,220.97 ","58,220.97 ",2000,Buildings Repairs and Maintenance - Reactive,1012,Retford,"1,439.97 "
Nottinghamshire Fire and Rescue Service ,102280,Amptron Electrical Services,Amptron Electrical Services,Operational Responses,1,202308,31/10/2022,P6,9103574,"-58,220.97 ","58,220.97 ",2000,Buildings Repairs and Maintenance - Reactive,1013,Tuxford,670.54 
Nottinghamshire Fire and Rescue Service ,102280,Amptron Electrical Services,Amptron Electrical Services,Operational Responses,1,202308,31/10/2022,P6,9103574,"-58,220.97 ","58,220.97 ",2000,Buildings Repairs and Maintenance - Reactive,1015,Collingham,"4,033.81 "
Nottinghamshire Fire and Rescue Service ,102280,Amptron Electrical Services,Amptron Electrical Services,Operational Responses,1,202308,31/10/2022,P6,9103574,"-58,220.97 ","58,220.97 ",2000,Buildings Repairs and Maintenance - Reactive,1016,Newark,828.26 
Nottinghamshire Fire and Rescue Service ,102280,Amptron Electrical Services,Amptron Electrical Services,Operational Responses,1,202308,31/10/2022,P6,9103574,"-58,220.97 ","58,220.97 ",2000,Buildings Repairs and Maintenance - Reactive,1017,Bingham,938.70 
Nottinghamshire Fire and Rescue Service ,102280,Amptron Electrical Services,Amptron Electrical Services,Operational Responses,1,202308,31/10/2022,P6,9103574,"-58,220.97 ","58,220.97 ",2000,Buildings Repairs and Maintenance - Reactive,1019,West Bridgford,"2,014.73 "
Nottinghamshire Fire and Rescue Service ,102280,Amptron Electrical Services,Amptron Electrical Services,Operational Responses,1,202308,31/10/2022,P6,9103574,"-58,220.97 ","58,220.97 ",2000,Buildings Repairs and Maintenance - Reactive,1020,Stockhill,293.87 
Nottinghamshire Fire and Rescue Service ,102280,Amptron Electrical Services,Amptron Electrical Services,Operational Responses,1,202308,31/10/2022,P6,9103574,"-58,220.97 ","58,220.97 ",2000,Buildings Repairs and Maintenance - Reactive,1023,Stapleford,949.30 
Nottinghamshire Fire and Rescue Service ,102280,Amptron Electrical Services,Amptron Electrical Services,Operational Responses,1,202308,31/10/2022,P6,9103574,"-58,220.97 ","58,220.97 ",2000,Buildings Repairs and Maintenance - Reactive,1026,Arnold,997.05 
Nottinghamshire Fire and Rescue Service ,102280,Amptron Electrical Services,Amptron Electrical Services,Operational Responses,1,202308,31/10/2022,P6,9103574,"-58,220.97 ","58,220.97 ",2000,Buildings Repairs and Maintenance - Reactive,1027,Carlton,"3,724.83 "
Nottinghamshire Fire and Rescue Service ,102280,Amptron Electrical Services,Amptron Electrical Services,Operational Responses,1,202308,31/10/2022,P6,9103574,"-58,220.97 ","58,220.97 ",2000,Buildings Repairs and Maintenance - Reactive,1028,East Leake,168.00 
Nottinghamshire Fire and Rescue Service ,102280,Amptron Electrical Services,Amptron Electrical Services,Operational Responses,1,202308,31/10/2022,P6,9103574,"-58,220.97 ","58,220.97 ",2000,Buildings Repairs and Maintenance - Reactive,1029,Highfields Station,"4,764.22 "
Nottinghamshire Fire and Rescue Service ,102280,Amptron Electrical Services,Amptron Electrical Services,Management & Support Services,1,202308,31/10/2022,P6,9103574,"-58,220.97 ","58,220.97 ",2000,Buildings Repairs and Maintenance - Reactive,1030,Service Development Centre,"4,251.91 "
Nottinghamshire Fire and Rescue Service ,102280,Amptron Electrical Services,Amptron Electrical Services,Management & Support Services,1,202308,31/10/2022,P6,9103574,"-58,220.97 ","58,220.97 ",2000,Buildings Repairs and Maintenance - Reactive,1035,Headquarters,533.76 
Nottinghamshire Fire and Rescue Service ,102280,Amptron Electrical Services,Amptron Electrical Services,Operational Responses,1,202308,31/10/2022,P6,9103335,"-34,272.83 ","34,272.83 ",2050,Building Maintenance - Planned,1001,Mansfield,"1,990.76 "
Nottinghamshire Fire and Rescue Service ,102280,Amptron Electrical Services,Amptron Electrical Services,Operational Responses,1,202308,31/10/2022,P6,9103335,"-34,272.83 ","34,272.83 ",2050,Building Maintenance - Planned,1002,Blidworth,621.03 
Nottinghamshire Fire and Rescue Service ,102280,Amptron Electrical Services,Amptron Electrical Services,Operational Responses,1,202308,31/10/2022,P6,9103335,"-34,272.83 ","34,272.83 ",2050,Building Maintenance - Planned,1003,London Road,"2,208.84 "
Nottinghamshire Fire and Rescue Service ,102280,Amptron Electrical Services,Amptron Electrical Services,Operational Responses,1,202308,31/10/2022,P6,9103335,"-34,272.83 ","34,272.83 ",2050,Building Maintenance - Planned,1005,Ashfield,"1,264.74 "
Nottinghamshire Fire and Rescue Service ,102280,Amptron Electrical Services,Amptron Electrical Services,Operational Responses,1,202308,31/10/2022,P6,9103335,"-34,272.83 ","34,272.83 ",2050,Building Maintenance - Planned,1006,Edwinstowe,378.23 
Nottinghamshire Fire and Rescue Service ,102280,Amptron Electrical Services,Amptron Electrical Services,Operational Responses,1,202308,31/10/2022,P6,9103335,"-34,272.83 ","34,272.83 ",2050,Building Maintenance - Planned,1007,Warsop,145.43 
Nottinghamshire Fire and Rescue Service ,102280,Amptron Electrical Services,Amptron Electrical Services,Operational Responses,1,202308,31/10/2022,P6,9103335,"-34,272.83 ","34,272.83 ",2050,Building Maintenance - Planned,1010,Harworth,150.23 
Nottinghamshire Fire and Rescue Service ,102280,Amptron Electrical Services,Amptron Electrical Services,Operational Responses,1,202308,31/10/2022,P6,9103335,"-34,272.83 ","34,272.83 ",2050,Building Maintenance - Planned,1011,Misterton,534.63 
Nottinghamshire Fire and Rescue Service ,102280,Amptron Electrical Services,Amptron Electrical Services,Operational Responses,1,202308,31/10/2022,P6,9103335,"-34,272.83 ","34,272.83 ",2050,Building Maintenance - Planned,1012,Retford,"1,355.58 "
Nottinghamshire Fire and Rescue Service ,102280,Amptron Electrical Services,Amptron Electrical Services,Operational Responses,1,202308,31/10/2022,P6,9103335,"-34,272.83 ","34,272.83 ",2050,Building Maintenance - Planned,1013,Tuxford,413.24 
Nottinghamshire Fire and Rescue Service ,102280,Amptron Electrical Services,Amptron Electrical Services,Operational Responses,1,202308,31/10/2022,P6,9103335,"-34,272.83 ","34,272.83 ",2050,Building Maintenance - Planned,1015,Collingham,145.43 
Nottinghamshire Fire and Rescue Service ,102280,Amptron Electrical Services,Amptron Electrical Services,Operational Responses,1,202308,31/10/2022,P6,9103335,"-34,272.83 ","34,272.83 ",2050,Building Maintenance - Planned,1016,Newark,"1,390.01 "
Nottinghamshire Fire and Rescue Service ,102280,Amptron Electrical Services,Amptron Electrical Services,Operational Responses,1,202308,31/10/2022,P6,9103335,"-34,272.83 ","34,272.83 ",2050,Building Maintenance - Planned,1017,Bingham,107.03 
Nottinghamshire Fire and Rescue Service ,102280,Amptron Electrical Services,Amptron Electrical Services,Operational Responses,1,202308,31/10/2022,P6,9103335,"-34,272.83 ","34,272.83 ",2050,Building Maintenance - Planned,1019,West Bridgford,"1,035.01 "
Nottinghamshire Fire and Rescue Service ,102280,Amptron Electrical Services,Amptron Electrical Services,Operational Responses,1,202308,31/10/2022,P6,9103335,"-34,272.83 ","34,272.83 ",2050,Building Maintenance - Planned,1020,Stockhill,"3,296.95 "
Nottinghamshire Fire and Rescue Service ,102280,Amptron Electrical Services,Amptron Electrical Services,Operational Responses,1,202308,31/10/2022,P6,9103335,"-34,272.83 ","34,272.83 ",2050,Building Maintenance - Planned,1023,Stapleford,"1,026.06 "
Nottinghamshire Fire and Rescue Service ,102280,Amptron Electrical Services,Amptron Electrical Services,Operational Responses,1,202308,31/10/2022,P6,9103335,"-34,272.83 ","34,272.83 ",2050,Building Maintenance - Planned,1024,Eastwood,102.23 
Nottinghamshire Fire and Rescue Service ,102280,Amptron Electrical Services,Amptron Electrical Services,Operational Responses,1,202308,31/10/2022,P6,9103335,"-34,272.83 ","34,272.83 ",2050,Building Maintenance - Planned,1026,Arnold,458.53 
Nottinghamshire Fire and Rescue Service ,102280,Amptron Electrical Services,Amptron Electrical Services,Operational Responses,1,202308,31/10/2022,P6,9103335,"-34,272.83 ","34,272.83 ",2050,Building Maintenance - Planned,1027,Carlton,"4,108.77 "
Nottinghamshire Fire and Rescue Service ,102280,Amptron Electrical Services,Amptron Electrical Services,Operational Responses,1,202308,31/10/2022,P6,9103335,"-34,272.83 ","34,272.83 ",2050,Building Maintenance - Planned,1028,East Leake,534.63 
Nottinghamshire Fire and Rescue Service ,102280,Amptron Electrical Services,Amptron Electrical Services,Operational Responses,1,202308,31/10/2022,P6,9103335,"-34,272.83 ","34,272.83 ",2050,Building Maintenance - Planned,1029,Highfields Station,"3,573.74 "
Nottinghamshire Fire and Rescue Service ,102280,Amptron Electrical Services,Amptron Electrical Services,Management & Support Services,1,202308,31/10/2022,P6,9103335,"-34,272.83 ","34,272.83 ",2050,Building Maintenance - Planned,1030,Service Development Centre,"3,719.59 "
Nottinghamshire Fire and Rescue Service ,101812,A B Waste Disposal Ltd,A B Waste Disposal Ltd,Management & Support Services,1,202308,17/10/2022,P6,9103482,-276.00 ,276.00 ,2050,Building Maintenance - Planned,2087,Estates Department (Previously Premises),230.00 
Nottinghamshire Fire and Rescue Service ,103837,BWT UK Limited,BWT UK Limited,Management & Support Services,5,202308,30/09/2022,P6,9103484,-592.19 ,592.19 ,2050,Building Maintenance - Planned,2087,Estates Department (Previously Premises),493.50 
Nottinghamshire Fire and Rescue Service ,103837,BWT UK Limited,BWT UK Limited,Management & Support Services,5,202308,31/10/2022,P6,9103610,-476.69 ,476.69 ,2050,Building Maintenance - Planned,2087,Estates Department (Previously Premises),397.25 
Nottinghamshire Fire and Rescue Service ,103487,East Midlands Ambulance Service NHS Trust,East Midlands Ambulance Service NHS Trust,Management & Support Services,1,202308,28/09/2022,P6,9103634,"-1,461.71 ","1,461.71 ",2050,Building Maintenance - Planned,2087,Estates Department (Previously Premises),"1,218.09 "
Nottinghamshire Fire and Rescue Service ,102744,EDF Energy,EDF Energy,Operational Responses,1,202308,01/09/2022,P6,9103307,"-1,454.69 ","1,454.69 ",2100,Electricity,1026,Arnold,4.93 
Nottinghamshire Fire and Rescue Service ,102744,EDF Energy,EDF Energy,Operational Responses,1,202308,01/09/2022,P6,9103307,"-1,454.69 ","1,454.69 ",2100,Electricity,1026,Arnold,"1,208.13 "
Nottinghamshire Fire and Rescue Service ,101903,Siemens Energy Services Ltd,Siemens Energy Services Ltd,Management & Support Services,1,202308,03/11/2022,P6,9103459,-643.20 ,643.20 ,2100,Electricity,1030,Service Development Centre,536.00 
Nottinghamshire Fire and Rescue Service ,102744,EDF Energy,EDF Energy,Operational Responses,1,202308,30/09/2022,P6,9103520,-262.40 ,262.40 ,2100,Electricity,2078,Mansfield Fire Station Museum,0.17 
Nottinghamshire Fire and Rescue Service ,102744,EDF Energy,EDF Energy,Operational Responses,1,202308,30/09/2022,P6,9103520,-262.40 ,262.40 ,2100,Electricity,2078,Mansfield Fire Station Museum,249.74 
Nottinghamshire Fire and Rescue Service ,102744,EDF Energy,EDF Energy,Operational Responses,1,202308,03/11/2022,P6,9103561,-377.23 ,377.23 ,2100,Electricity,2078,Mansfield Fire Station Museum,1.00 
Nottinghamshire Fire and Rescue Service ,102744,EDF Energy,EDF Energy,Operational Responses,1,202308,03/11/2022,P6,9103561,-377.23 ,377.23 ,2100,Electricity,2078,Mansfield Fire Station Museum,313.52 
Nottinghamshire Fire and Rescue Service ,102744,EDF Energy,EDF Energy,Operational Responses,1,202308,08/09/2022,P6,9103575,"-2,418.39 ","2,418.39 ",2100,Electricity,1001,Mansfield,1.40 
Nottinghamshire Fire and Rescue Service ,102744,EDF Energy,EDF Energy,Operational Responses,1,202308,08/09/2022,P6,9103575,"-2,418.39 ","2,418.39 ",2100,Electricity,1001,Mansfield,"2,014.16 "
Nottinghamshire Fire and Rescue Service ,102744,EDF Energy,EDF Energy,Operational Responses,1,202308,08/09/2022,P6,9103576,-399.72 ,399.72 ,2100,Electricity,1007,Warsop,333.10 
Nottinghamshire Fire and Rescue Service ,102744,EDF Energy,EDF Energy,Operational Responses,1,202308,30/09/2022,P6,9103578,-357.42 ,357.42 ,2100,Electricity,1014,Southwell,0.21 
Nottinghamshire Fire and Rescue Service ,102744,EDF Energy,EDF Energy,Operational Responses,1,202308,30/09/2022,P6,9103578,-357.42 ,357.42 ,2100,Electricity,1014,Southwell,297.67 
Nottinghamshire Fire and Rescue Service ,102744,EDF Energy,EDF Energy,Operational Responses,1,202308,02/11/2022,P6,9103579,"-1,769.49 ","1,769.49 ",2100,Electricity,1024,Eastwood,"1,474.57 "
Nottinghamshire Fire and Rescue Service ,102744,EDF Energy,EDF Energy,Operational Responses,1,202308,01/09/2022,P6,9103580,-299.60 ,299.60 ,2100,Electricity,1014,Southwell,0.38 
Nottinghamshire Fire and Rescue Service ,102744,EDF Energy,EDF Energy,Operational Responses,1,202308,01/09/2022,P6,9103580,-299.60 ,299.60 ,2100,Electricity,1014,Southwell,284.97 
Nottinghamshire Fire and Rescue Service ,102744,EDF Energy,EDF Energy,Operational Responses,1,202308,30/09/2022,P6,9103581,-269.41 ,269.41 ,2100,Electricity,1002,Blidworth,0.65 
Nottinghamshire Fire and Rescue Service ,102744,EDF Energy,EDF Energy,Operational Responses,1,202308,30/09/2022,P6,9103581,-269.41 ,269.41 ,2100,Electricity,1002,Blidworth,255.96 
Nottinghamshire Fire and Rescue Service ,102744,EDF Energy,EDF Energy,Operational Responses,1,202308,30/09/2022,P6,9103582,-275.27 ,275.27 ,2100,Electricity,1013,Tuxford,0.32 
Nottinghamshire Fire and Rescue Service ,102744,EDF Energy,EDF Energy,Operational Responses,1,202308,30/09/2022,P6,9103582,-275.27 ,275.27 ,2100,Electricity,1013,Tuxford,229.13 
Nottinghamshire Fire and Rescue Service ,102744,EDF Energy,EDF Energy,Operational Responses,1,202308,03/11/2022,P6,9103583,-528.62 ,528.62 ,2100,Electricity,1007,Warsop,0.82 
Nottinghamshire Fire and Rescue Service ,102744,EDF Energy,EDF Energy,Operational Responses,1,202308,03/11/2022,P6,9103583,-528.62 ,528.62 ,2100,Electricity,1007,Warsop,439.83 
Nottinghamshire Fire and Rescue Service ,102744,EDF Energy,EDF Energy,Operational Responses,1,202308,30/09/2022,P6,9103585,-430.10 ,430.10 ,2100,Electricity,1015,Collingham,0.38 
Nottinghamshire Fire and Rescue Service ,102744,EDF Energy,EDF Energy,Operational Responses,1,202308,30/09/2022,P6,9103585,-430.10 ,430.10 ,2100,Electricity,1015,Collingham,358.10 
Nottinghamshire Fire and Rescue Service ,102744,EDF Energy,EDF Energy,Operational Responses,1,202308,30/09/2022,P6,9103586,-252.35 ,252.35 ,2100,Electricity,1008,Worksop,0.28 
Nottinghamshire Fire and Rescue Service ,102744,EDF Energy,EDF Energy,Operational Responses,1,202308,30/09/2022,P6,9103586,-252.35 ,252.35 ,2100,Electricity,1008,Worksop,240.07 
Nottinghamshire Fire and Rescue Service ,102744,EDF Energy,EDF Energy,Operational Responses,1,202308,30/09/2022,P6,9103587,"-1,285.64 ","1,285.64 ",2100,Electricity,1026,Arnold,3.65 
Nottinghamshire Fire and Rescue Service ,102744,EDF Energy,EDF Energy,Operational Responses,1,202308,30/09/2022,P6,9103587,"-1,285.64 ","1,285.64 ",2100,Electricity,1026,Arnold,"1,068.32 "
Nottinghamshire Fire and Rescue Service ,102744,EDF Energy,EDF Energy,Operational Responses,1,202308,30/09/2022,P6,9103588,"-10,216.62 ","10,216.62 ",2100,Electricity,1019,West Bridgford,"8,513.85 "
Nottinghamshire Fire and Rescue Service ,102744,EDF Energy,EDF Energy,Operational Responses,1,202308,30/09/2022,P6,9103589,"-5,624.11 ","5,624.11 ",2100,Electricity,1005,Ashfield,12.90 
Nottinghamshire Fire and Rescue Service ,102744,EDF Energy,EDF Energy,Operational Responses,1,202308,30/09/2022,P6,9103589,"-5,624.11 ","5,624.11 ",2100,Electricity,1005,Ashfield,"4,676.01 "
Nottinghamshire Fire and Rescue Service ,102744,EDF Energy,EDF Energy,Operational Responses,1,202308,30/09/2022,P6,9103590,"-2,448.30 ","2,448.30 ",2100,Electricity,1010,Harworth,4.92 
Nottinghamshire Fire and Rescue Service ,102744,EDF Energy,EDF Energy,Operational Responses,1,202308,30/09/2022,P6,9103590,"-2,448.30 ","2,448.30 ",2100,Electricity,1010,Harworth,"2,036.15 "
Nottinghamshire Fire and Rescue Service ,102744,EDF Energy,EDF Energy,Operational Responses,1,202308,30/09/2022,P6,9103591,"-2,237.84 ","2,237.84 ",2100,Electricity,1006,Edwinstowe,5.55 
Nottinghamshire Fire and Rescue Service ,102744,EDF Energy,EDF Energy,Operational Responses,1,202308,30/09/2022,P6,9103591,"-2,237.84 ","2,237.84 ",2100,Electricity,1006,Edwinstowe,"1,860.24 "
Nottinghamshire Fire and Rescue Service ,102744,EDF Energy,EDF Energy,Operational Responses,1,202308,30/09/2022,P6,9103592,"-2,197.78 ","2,197.78 ",2100,Electricity,1023,Stapleford,4.43 
Nottinghamshire Fire and Rescue Service ,102744,EDF Energy,EDF Energy,Operational Responses,1,202308,30/09/2022,P6,9103592,"-2,197.78 ","2,197.78 ",2100,Electricity,1023,Stapleford,"1,827.79 "
Nottinghamshire Fire and Rescue Service ,102744,EDF Energy,EDF Energy,Operational Responses,1,202308,03/10/2022,P6,9103593,-381.39 ,381.39 ,2100,Electricity,1028,East Leake,0.34 
Nottinghamshire Fire and Rescue Service ,102744,EDF Energy,EDF Energy,Operational Responses,1,202308,03/10/2022,P6,9103593,-381.39 ,381.39 ,2100,Electricity,1028,East Leake,317.54 
Nottinghamshire Fire and Rescue Service ,102744,EDF Energy,EDF Energy,Operational Responses,1,202308,10/10/2022,P6,9103594,"-1,004.36 ","1,004.36 ",2100,Electricity,1011,Misterton,7.01 
Nottinghamshire Fire and Rescue Service ,102744,EDF Energy,EDF Energy,Operational Responses,1,202308,10/10/2022,P6,9103594,"-1,004.36 ","1,004.36 ",2100,Electricity,1011,Misterton,831.13 
Nottinghamshire Fire and Rescue Service ,102744,EDF Energy,EDF Energy,Operational Responses,1,202308,10/10/2022,P6,9103595,"-2,380.34 ","2,380.34 ",2100,Electricity,1001,Mansfield,2.37 
Nottinghamshire Fire and Rescue Service ,102744,EDF Energy,EDF Energy,Operational Responses,1,202308,10/10/2022,P6,9103595,"-2,380.34 ","2,380.34 ",2100,Electricity,1001,Mansfield,"1,981.64 "
Nottinghamshire Fire and Rescue Service ,102744,EDF Energy,EDF Energy,Operational Responses,1,202308,10/10/2022,P6,9103596,-436.61 ,436.61 ,2100,Electricity,1007,Warsop,0.39 
Nottinghamshire Fire and Rescue Service ,102744,EDF Energy,EDF Energy,Operational Responses,1,202308,10/10/2022,P6,9103596,-436.61 ,436.61 ,2100,Electricity,1007,Warsop,363.52 
Nottinghamshire Fire and Rescue Service ,102744,EDF Energy,EDF Energy,Operational Responses,1,202308,11/10/2022,P6,9103597,"-1,354.95 ","1,354.95 ",2100,Electricity,1017,Bingham,3.01 
Nottinghamshire Fire and Rescue Service ,102744,EDF Energy,EDF Energy,Operational Responses,1,202308,11/10/2022,P6,9103597,"-1,354.95 ","1,354.95 ",2100,Electricity,1017,Bingham,"1,126.62 "
Nottinghamshire Fire and Rescue Service ,102744,EDF Energy,EDF Energy,Operational Responses,1,202308,27/10/2022,P6,9103598,"-2,657.14 ","2,657.14 ",2100,Electricity,1008,Worksop,"2,213.76 "
Nottinghamshire Fire and Rescue Service ,102744,EDF Energy,EDF Energy,Operational Responses,1,202308,02/11/2022,P6,9103599,"-3,025.76 ","3,025.76 ",2100,Electricity,1008,Worksop,"2,521.47 "
Nottinghamshire Fire and Rescue Service ,102744,EDF Energy,EDF Energy,Operational Responses,1,202308,03/11/2022,P6,9103602,-464.32 ,464.32 ,2100,Electricity,1015,Collingham,1.75 
Nottinghamshire Fire and Rescue Service ,102744,EDF Energy,EDF Energy,Operational Responses,1,202308,03/11/2022,P6,9103602,-464.32 ,464.32 ,2100,Electricity,1015,Collingham,385.48 
Nottinghamshire Fire and Rescue Service ,102744,EDF Energy,EDF Energy,Operational Responses,1,202308,03/11/2022,P6,9103603,"-1,495.28 ","1,495.28 ",2100,Electricity,1026,Arnold,8.06 
Nottinghamshire Fire and Rescue Service ,102744,EDF Energy,EDF Energy,Operational Responses,1,202308,03/11/2022,P6,9103603,"-1,495.28 ","1,495.28 ",2100,Electricity,1026,Arnold,"1,239.35 "
Nottinghamshire Fire and Rescue Service ,102744,EDF Energy,EDF Energy,Operational Responses,1,202308,03/11/2022,P6,9103606,-401.73 ,401.73 ,2100,Electricity,1028,East Leake,1.05 
Nottinghamshire Fire and Rescue Service ,102744,EDF Energy,EDF Energy,Operational Responses,1,202308,03/11/2022,P6,9103606,-401.73 ,401.73 ,2100,Electricity,1028,East Leake,333.90 
Nottinghamshire Fire and Rescue Service ,102744,EDF Energy,EDF Energy,Operational Responses,1,202308,03/11/2022,P6,9103607,-397.11 ,397.11 ,2100,Electricity,1014,Southwell,1.26 
Nottinghamshire Fire and Rescue Service ,102744,EDF Energy,EDF Energy,Operational Responses,1,202308,03/11/2022,P6,9103607,-397.11 ,397.11 ,2100,Electricity,1014,Southwell,329.87 
Nottinghamshire Fire and Rescue Service ,102744,EDF Energy,EDF Energy,Operational Responses,1,202308,03/11/2022,P6,9103608,-362.01 ,362.01 ,2100,Electricity,1002,Blidworth,1.24 
Nottinghamshire Fire and Rescue Service ,102744,EDF Energy,EDF Energy,Operational Responses,1,202308,03/11/2022,P6,9103608,-362.01 ,362.01 ,2100,Electricity,1002,Blidworth,300.64 
Nottinghamshire Fire and Rescue Service ,102744,EDF Energy,EDF Energy,Operational Responses,1,202308,03/11/2022,P6,9103611,-721.87 ,721.87 ,2100,Electricity,1013,Tuxford,0.93 
Nottinghamshire Fire and Rescue Service ,102744,EDF Energy,EDF Energy,Operational Responses,1,202308,03/11/2022,P6,9103611,-721.87 ,721.87 ,2100,Electricity,1013,Tuxford,600.78 
Nottinghamshire Fire and Rescue Service ,102744,EDF Energy,EDF Energy,Operational Responses,1,202308,07/11/2022,P6,9103612,"-23,207.43 ","23,207.43 ",2100,Electricity,1003,London Road,"2,692.94 "
Nottinghamshire Fire and Rescue Service ,102744,EDF Energy,EDF Energy,Operational Responses,1,202308,07/11/2022,P6,9103612,"-23,207.43 ","23,207.43 ",2100,Electricity,1012,Retford,"2,188.94 "
Nottinghamshire Fire and Rescue Service ,102744,EDF Energy,EDF Energy,Operational Responses,1,202308,07/11/2022,P6,9103612,"-23,207.43 ","23,207.43 ",2100,Electricity,1016,Newark,"1,326.68 "
Nottinghamshire Fire and Rescue Service ,102744,EDF Energy,EDF Energy,Operational Responses,1,202308,07/11/2022,P6,9103612,"-23,207.43 ","23,207.43 ",2100,Electricity,1027,Carlton,"2,500.64 "
Nottinghamshire Fire and Rescue Service ,102744,EDF Energy,EDF Energy,Operational Responses,1,202308,07/11/2022,P6,9103612,"-23,207.43 ","23,207.43 ",2100,Electricity,1029,Highfields Station,"-4,600.90 "
Nottinghamshire Fire and Rescue Service ,102744,EDF Energy,EDF Energy,Operational Responses,1,202308,07/11/2022,P6,9103612,"-23,207.43 ","23,207.43 ",2100,Electricity,1029,Highfields Station,"4,600.95 "
Nottinghamshire Fire and Rescue Service ,102744,EDF Energy,EDF Energy,Operational Responses,1,202308,07/11/2022,P6,9103612,"-23,207.43 ","23,207.43 ",2100,Electricity,1029,Highfields Station,"5,336.94 "
Nottinghamshire Fire and Rescue Service ,102744,EDF Energy,EDF Energy,Management & Support Services,1,202308,07/11/2022,P6,9103612,"-23,207.43 ","23,207.43 ",2100,Electricity,1030,Service Development Centre,"2,290.92 "
Nottinghamshire Fire and Rescue Service ,102744,EDF Energy,EDF Energy,Management & Support Services,1,202308,07/11/2022,P6,9103612,"-23,207.43 ","23,207.43 ",2100,Electricity,1035,Headquarters,"3,002.41 "
Nottinghamshire Fire and Rescue Service ,102655,Nottingham City Council (City Treasurer),Nottingham City Council (City Treasurer),Operational Responses,1,202308,04/11/2022,P6,9103399,-749.50 ,749.50 ,2101,Gas,1003,London Road,624.58 
Nottinghamshire Fire and Rescue Service ,104098,Total Gas & Power Limited,Total Gas & Power Limited,Operational Responses,5,202308,13/10/2022,P6,9103401,-331.19 ,331.19 ,2101,Gas,1010,Harworth,315.42 
Nottinghamshire Fire and Rescue Service ,104098,Total Gas & Power Limited,Total Gas & Power Limited,Operational Responses,5,202308,18/11/2022,P6,9103643,"-1,308.83 ","1,308.83 ",2101,Gas,1019,West Bridgford,"1,090.69 "
Nottinghamshire Fire and Rescue Service ,104098,Total Gas & Power Limited,Total Gas & Power Limited,Operational Responses,5,202308,18/11/2022,P6,9103644,"-1,947.92 ","1,947.92 ",2101,Gas,1008,Worksop,"1,623.27 "
Nottinghamshire Fire and Rescue Service ,104098,Total Gas & Power Limited,Total Gas & Power Limited,Operational Responses,5,202308,18/11/2022,P6,9103645,-742.39 ,742.39 ,2101,Gas,1024,Eastwood,618.65 
Nottinghamshire Fire and Rescue Service ,104098,Total Gas & Power Limited,Total Gas & Power Limited,Operational Responses,5,202308,18/11/2022,P6,9103646,-908.87 ,908.87 ,2101,Gas,1012,Retford,757.39 
Nottinghamshire Fire and Rescue Service ,104098,Total Gas & Power Limited,Total Gas & Power Limited,Operational Responses,5,202308,18/11/2022,P6,9103647,-950.35 ,950.35 ,2101,Gas,1027,Carlton,791.96 
Nottinghamshire Fire and Rescue Service ,104098,Total Gas & Power Limited,Total Gas & Power Limited,Operational Responses,5,202308,18/11/2022,P6,9103648,"-1,328.93 ","1,328.93 ",2101,Gas,1026,Arnold,"1,107.44 "
Nottinghamshire Fire and Rescue Service ,104098,Total Gas & Power Limited,Total Gas & Power Limited,Operational Responses,5,202308,18/11/2022,P6,9103649,-574.16 ,574.16 ,2101,Gas,1015,Collingham,478.47 
Nottinghamshire Fire and Rescue Service ,104098,Total Gas & Power Limited,Total Gas & Power Limited,Operational Responses,5,202308,18/11/2022,P6,9103650,-564.08 ,564.08 ,2101,Gas,1016,Newark,470.06 
Nottinghamshire Fire and Rescue Service ,104098,Total Gas & Power Limited,Total Gas & Power Limited,Operational Responses,5,202308,18/11/2022,P6,9103651,"-2,709.50 ","2,709.50 ",2101,Gas,1001,Mansfield,"2,257.92 "
Nottinghamshire Fire and Rescue Service ,104098,Total Gas & Power Limited,Total Gas & Power Limited,Operational Responses,5,202308,18/11/2022,P6,9103652,"-1,737.74 ","1,737.74 ",2101,Gas,1029,Highfields Station,"1,448.12 "
Nottinghamshire Fire and Rescue Service ,104098,Total Gas & Power Limited,Total Gas & Power Limited,Operational Responses,5,202308,18/11/2022,P6,9103653,-496.27 ,496.27 ,2101,Gas,1001,Mansfield,413.56 
Nottinghamshire Fire and Rescue Service ,104098,Total Gas & Power Limited,Total Gas & Power Limited,Operational Responses,5,202308,18/11/2022,P6,9103655,"-1,377.93 ","1,377.93 ",2101,Gas,1006,Edwinstowe,"1,148.28 "
Nottinghamshire Fire and Rescue Service ,104098,Total Gas & Power Limited,Total Gas & Power Limited,Operational Responses,5,202308,18/11/2022,P6,9103656,"-2,735.18 ","2,735.18 ",2101,Gas,1005,Ashfield,"2,279.31 "
Nottinghamshire Fire and Rescue Service ,104098,Total Gas & Power Limited,Total Gas & Power Limited,Operational Responses,5,202308,18/11/2022,P6,9103657,-482.43 ,482.43 ,2101,Gas,1010,Harworth,402.03 
Nottinghamshire Fire and Rescue Service ,104098,Total Gas & Power Limited,Total Gas & Power Limited,Operational Responses,5,202308,18/11/2022,P6,9103658,-252.33 ,252.33 ,2101,Gas,1015,Collingham,240.31 
Nottinghamshire Fire and Rescue Service ,104098,Total Gas & Power Limited,Total Gas & Power Limited,Operational Responses,5,202308,18/11/2022,P6,9103663,-331.68 ,331.68 ,2101,Gas,1017,Bingham,315.89 
Nottinghamshire Fire and Rescue Service ,104098,Total Gas & Power Limited,Total Gas & Power Limited,Operational Responses,5,202308,18/11/2022,P6,9103664,"-1,053.58 ","1,053.58 ",2101,Gas,1016,Newark,877.98 
Nottinghamshire Fire and Rescue Service ,104007,Castle Water Limited,Castle Water Limited,Operational Responses,5,202308,04/05/2022,P6,9103398,-395.80 ,395.80 ,2103,Water Rates,1016,Newark,41.86 
Nottinghamshire Fire and Rescue Service ,104007,Castle Water Limited,Castle Water Limited,Operational Responses,5,202308,04/05/2022,P6,9103398,-395.80 ,395.80 ,2103,Water Rates,1016,Newark,101.90 
Nottinghamshire Fire and Rescue Service ,104007,Castle Water Limited,Castle Water Limited,Operational Responses,5,202308,12/10/2022,P6,9103460,-365.32 ,365.32 ,2103,Water Rates,1016,Newark,105.93 
Nottinghamshire Fire and Rescue Service ,104007,Castle Water Limited,Castle Water Limited,Operational Responses,5,202308,11/11/2022,P6,9103462,-377.86 ,377.86 ,2103,Water Rates,1016,Newark,109.36 
Nottinghamshire Fire and Rescue Service ,104007,Castle Water Limited,Castle Water Limited,Management & Support Services,5,202308,11/11/2022,P6,9103462,-377.86 ,377.86 ,2103,Water Rates,2087,Estates Department (Previously Premises),0.55 
Nottinghamshire Fire and Rescue Service ,104007,Castle Water Limited,Castle Water Limited,Operational Responses,5,202308,04/05/2022,P6,9103398,-395.80 ,395.80 ,2104,Sewerage and Environmental,1016,Newark,231.68 
Nottinghamshire Fire and Rescue Service ,104007,Castle Water Limited,Castle Water Limited,Operational Responses,5,202308,12/10/2022,P6,9103460,-365.32 ,365.32 ,2104,Sewerage and Environmental,1016,Newark,238.21 
Nottinghamshire Fire and Rescue Service ,104007,Castle Water Limited,Castle Water Limited,Operational Responses,5,202308,11/11/2022,P6,9103462,-377.86 ,377.86 ,2104,Sewerage and Environmental,1016,Newark,246.07 
Nottinghamshire Fire and Rescue Service ,103847,Veolia ES UK Limited,Veolia ES UK Limited,Management & Support Services,5,202308,30/09/2022,P6,9103416,"-1,711.27 ","1,711.27 ",2106,Refuse / Trade Waste Collection,2086,Procurement,"1,426.06 "
Nottinghamshire Fire and Rescue Service ,103847,Veolia ES UK Limited,Veolia ES UK Limited,Management & Support Services,5,202308,30/09/2022,P6,9103436,"-1,749.18 ","1,749.18 ",2106,Refuse / Trade Waste Collection,2086,Procurement,"1,457.65 "
Nottinghamshire Fire and Rescue Service ,101812,A B Waste Disposal Ltd,A B Waste Disposal Ltd,Operational Responses,1,202308,29/10/2022,P6,9103483,-282.00 ,282.00 ,2106,Refuse / Trade Waste Collection,1005,Ashfield,235.00 
Nottinghamshire Fire and Rescue Service ,101512,Frank Key Group Merchants (Nottingham) Ltd,Frank Key Group Merchants (Nottingham) Ltd,Management & Support Services,1,202308,29/09/2022,P6,9103486,-564.00 ,564.00 ,2106,Refuse / Trade Waste Collection,2086,Procurement,470.00 
Nottinghamshire Fire and Rescue Service ,103280,Shred IT Limited,Shred IT Limited,Management & Support Services,5,202308,31/10/2022,P6,9103547,-743.48 ,743.48 ,2106,Refuse / Trade Waste Collection,1035,Headquarters,619.57 
Nottinghamshire Fire and Rescue Service ,103847,Veolia ES UK Limited,Veolia ES UK Limited,Management & Support Services,5,202308,31/10/2022,P6,9103622,"-1,585.45 ","1,585.45 ",2106,Refuse / Trade Waste Collection,2086,Procurement,"1,321.21 "
Nottinghamshire Fire and Rescue Service ,100557,NCC Sundry Debtors,NCC Sundry Debtors,Operational Responses,4,202308,01/11/2022,P6,9103509,"-1,805.45 ","1,805.45 ",2201,Grounds Maintenance,1001,Mansfield,39.60 
Nottinghamshire Fire and Rescue Service ,100557,NCC Sundry Debtors,NCC Sundry Debtors,Operational Responses,4,202308,01/11/2022,P6,9103509,"-1,805.45 ","1,805.45 ",2201,Grounds Maintenance,1002,Blidworth,67.84 
Nottinghamshire Fire and Rescue Service ,100557,NCC Sundry Debtors,NCC Sundry Debtors,Operational Responses,4,202308,01/11/2022,P6,9103509,"-1,805.45 ","1,805.45 ",2201,Grounds Maintenance,1003,London Road,36.40 
Nottinghamshire Fire and Rescue Service ,100557,NCC Sundry Debtors,NCC Sundry Debtors,Operational Responses,4,202308,01/11/2022,P6,9103509,"-1,805.45 ","1,805.45 ",2201,Grounds Maintenance,1005,Ashfield,182.04 
Nottinghamshire Fire and Rescue Service ,100557,NCC Sundry Debtors,NCC Sundry Debtors,Operational Responses,4,202308,01/11/2022,P6,9103509,"-1,805.45 ","1,805.45 ",2201,Grounds Maintenance,1006,Edwinstowe,38.51 
Nottinghamshire Fire and Rescue Service ,100557,NCC Sundry Debtors,NCC Sundry Debtors,Operational Responses,4,202308,01/11/2022,P6,9103509,"-1,805.45 ","1,805.45 ",2201,Grounds Maintenance,1007,Warsop,3.32 
Nottinghamshire Fire and Rescue Service ,100557,NCC Sundry Debtors,NCC Sundry Debtors,Operational Responses,4,202308,01/11/2022,P6,9103509,"-1,805.45 ","1,805.45 ",2201,Grounds Maintenance,1008,Worksop,35.95 
Nottinghamshire Fire and Rescue Service ,100557,NCC Sundry Debtors,NCC Sundry Debtors,Operational Responses,4,202308,01/11/2022,P6,9103509,"-1,805.45 ","1,805.45 ",2201,Grounds Maintenance,1010,Harworth,42.26 
Nottinghamshire Fire and Rescue Service ,100557,NCC Sundry Debtors,NCC Sundry Debtors,Operational Responses,4,202308,01/11/2022,P6,9103509,"-1,805.45 ","1,805.45 ",2201,Grounds Maintenance,1011,Misterton,39.23 
Nottinghamshire Fire and Rescue Service ,100557,NCC Sundry Debtors,NCC Sundry Debtors,Operational Responses,4,202308,01/11/2022,P6,9103509,"-1,805.45 ","1,805.45 ",2201,Grounds Maintenance,1012,Retford,26.31 
Nottinghamshire Fire and Rescue Service ,100557,NCC Sundry Debtors,NCC Sundry Debtors,Operational Responses,4,202308,01/11/2022,P6,9103509,"-1,805.45 ","1,805.45 ",2201,Grounds Maintenance,1013,Tuxford,27.35 
Nottinghamshire Fire and Rescue Service ,100557,NCC Sundry Debtors,NCC Sundry Debtors,Operational Responses,4,202308,01/11/2022,P6,9103509,"-1,805.45 ","1,805.45 ",2201,Grounds Maintenance,1014,Southwell,26.00 
Nottinghamshire Fire and Rescue Service ,100557,NCC Sundry Debtors,NCC Sundry Debtors,Operational Responses,4,202308,01/11/2022,P6,9103509,"-1,805.45 ","1,805.45 ",2201,Grounds Maintenance,1015,Collingham,15.21 
Nottinghamshire Fire and Rescue Service ,100557,NCC Sundry Debtors,NCC Sundry Debtors,Operational Responses,4,202308,01/11/2022,P6,9103509,"-1,805.45 ","1,805.45 ",2201,Grounds Maintenance,1016,Newark,37.78 
Nottinghamshire Fire and Rescue Service ,100557,NCC Sundry Debtors,NCC Sundry Debtors,Operational Responses,4,202308,01/11/2022,P6,9103509,"-1,805.45 ","1,805.45 ",2201,Grounds Maintenance,1017,Bingham,64.08 
Nottinghamshire Fire and Rescue Service ,100557,NCC Sundry Debtors,NCC Sundry Debtors,Operational Responses,4,202308,01/11/2022,P6,9103509,"-1,805.45 ","1,805.45 ",2201,Grounds Maintenance,1019,West Bridgford,108.64 
Nottinghamshire Fire and Rescue Service ,100557,NCC Sundry Debtors,NCC Sundry Debtors,Operational Responses,4,202308,01/11/2022,P6,9103509,"-1,805.45 ","1,805.45 ",2201,Grounds Maintenance,1020,Stockhill,216.10 
Nottinghamshire Fire and Rescue Service ,100557,NCC Sundry Debtors,NCC Sundry Debtors,Operational Responses,4,202308,01/11/2022,P6,9103509,"-1,805.45 ","1,805.45 ",2201,Grounds Maintenance,1023,Stapleford,80.50 
Nottinghamshire Fire and Rescue Service ,100557,NCC Sundry Debtors,NCC Sundry Debtors,Operational Responses,4,202308,01/11/2022,P6,9103509,"-1,805.45 ","1,805.45 ",2201,Grounds Maintenance,1024,Eastwood,27.09 
Nottinghamshire Fire and Rescue Service ,100557,NCC Sundry Debtors,NCC Sundry Debtors,Operational Responses,4,202308,01/11/2022,P6,9103509,"-1,805.45 ","1,805.45 ",2201,Grounds Maintenance,1026,Arnold,11.31 
Nottinghamshire Fire and Rescue Service ,100557,NCC Sundry Debtors,NCC Sundry Debtors,Operational Responses,4,202308,01/11/2022,P6,9103509,"-1,805.45 ","1,805.45 ",2201,Grounds Maintenance,1027,Carlton,10.21 
Nottinghamshire Fire and Rescue Service ,100557,NCC Sundry Debtors,NCC Sundry Debtors,Operational Responses,4,202308,01/11/2022,P6,9103509,"-1,805.45 ","1,805.45 ",2201,Grounds Maintenance,1028,East Leake,132.86 
Nottinghamshire Fire and Rescue Service ,100557,NCC Sundry Debtors,NCC Sundry Debtors,Operational Responses,4,202308,01/11/2022,P6,9103509,"-1,805.45 ","1,805.45 ",2201,Grounds Maintenance,1029,Highfields Station,79.20 
Nottinghamshire Fire and Rescue Service ,100557,NCC Sundry Debtors,NCC Sundry Debtors,Management & Support Services,4,202308,01/11/2022,P6,9103509,"-1,805.45 ","1,805.45 ",2201,Grounds Maintenance,1030,Service Development Centre,156.75 
Nottinghamshire Fire and Rescue Service ,100557,NCC Sundry Debtors,NCC Sundry Debtors,Operational Responses,4,202308,01/11/2022,P6,9103508,-406.01 ,406.01 ,2204,Contract Cleaning,1001,Mansfield,15.42 
Nottinghamshire Fire and Rescue Service ,100557,NCC Sundry Debtors,NCC Sundry Debtors,Operational Responses,4,202308,01/11/2022,P6,9103508,-406.01 ,406.01 ,2204,Contract Cleaning,1002,Blidworth,11.57 
Nottinghamshire Fire and Rescue Service ,100557,NCC Sundry Debtors,NCC Sundry Debtors,Operational Responses,4,202308,01/11/2022,P6,9103508,-406.01 ,406.01 ,2204,Contract Cleaning,1003,London Road,14.46 
Nottinghamshire Fire and Rescue Service ,100557,NCC Sundry Debtors,NCC Sundry Debtors,Operational Responses,4,202308,01/11/2022,P6,9103508,-406.01 ,406.01 ,2204,Contract Cleaning,1005,Ashfield,15.42 
Nottinghamshire Fire and Rescue Service ,100557,NCC Sundry Debtors,NCC Sundry Debtors,Operational Responses,4,202308,01/11/2022,P6,9103508,-406.01 ,406.01 ,2204,Contract Cleaning,1006,Edwinstowe,11.57 
Nottinghamshire Fire and Rescue Service ,100557,NCC Sundry Debtors,NCC Sundry Debtors,Operational Responses,4,202308,01/11/2022,P6,9103508,-406.01 ,406.01 ,2204,Contract Cleaning,1007,Warsop,11.57 
Nottinghamshire Fire and Rescue Service ,100557,NCC Sundry Debtors,NCC Sundry Debtors,Operational Responses,4,202308,01/11/2022,P6,9103508,-406.01 ,406.01 ,2204,Contract Cleaning,1008,Worksop,15.42 
Nottinghamshire Fire and Rescue Service ,100557,NCC Sundry Debtors,NCC Sundry Debtors,Operational Responses,4,202308,01/11/2022,P6,9103508,-406.01 ,406.01 ,2204,Contract Cleaning,1010,Harworth,11.57 
Nottinghamshire Fire and Rescue Service ,100557,NCC Sundry Debtors,NCC Sundry Debtors,Operational Responses,4,202308,01/11/2022,P6,9103508,-406.01 ,406.01 ,2204,Contract Cleaning,1011,Misterton,11.57 
Nottinghamshire Fire and Rescue Service ,100557,NCC Sundry Debtors,NCC Sundry Debtors,Operational Responses,4,202308,01/11/2022,P6,9103508,-406.01 ,406.01 ,2204,Contract Cleaning,1012,Retford,11.57 
Nottinghamshire Fire and Rescue Service ,100557,NCC Sundry Debtors,NCC Sundry Debtors,Operational Responses,4,202308,01/11/2022,P6,9103508,-406.01 ,406.01 ,2204,Contract Cleaning,1013,Tuxford,11.57 
Nottinghamshire Fire and Rescue Service ,100557,NCC Sundry Debtors,NCC Sundry Debtors,Operational Responses,4,202308,01/11/2022,P6,9103508,-406.01 ,406.01 ,2204,Contract Cleaning,1014,Southwell,11.57 
Nottinghamshire Fire and Rescue Service ,100557,NCC Sundry Debtors,NCC Sundry Debtors,Operational Responses,4,202308,01/11/2022,P6,9103508,-406.01 ,406.01 ,2204,Contract Cleaning,1015,Collingham,11.57 
Nottinghamshire Fire and Rescue Service ,100557,NCC Sundry Debtors,NCC Sundry Debtors,Operational Responses,4,202308,01/11/2022,P6,9103508,-406.01 ,406.01 ,2204,Contract Cleaning,1016,Newark,15.42 
Nottinghamshire Fire and Rescue Service ,100557,NCC Sundry Debtors,NCC Sundry Debtors,Operational Responses,4,202308,01/11/2022,P6,9103508,-406.01 ,406.01 ,2204,Contract Cleaning,1017,Bingham,11.57 
Nottinghamshire Fire and Rescue Service ,100557,NCC Sundry Debtors,NCC Sundry Debtors,Operational Responses,4,202308,01/11/2022,P6,9103508,-406.01 ,406.01 ,2204,Contract Cleaning,1019,West Bridgford,15.42 
Nottinghamshire Fire and Rescue Service ,100557,NCC Sundry Debtors,NCC Sundry Debtors,Operational Responses,4,202308,01/11/2022,P6,9103508,-406.01 ,406.01 ,2204,Contract Cleaning,1020,Stockhill,15.42 
Nottinghamshire Fire and Rescue Service ,100557,NCC Sundry Debtors,NCC Sundry Debtors,Operational Responses,4,202308,01/11/2022,P6,9103508,-406.01 ,406.01 ,2204,Contract Cleaning,1023,Stapleford,11.57 
Nottinghamshire Fire and Rescue Service ,100557,NCC Sundry Debtors,NCC Sundry Debtors,Operational Responses,4,202308,01/11/2022,P6,9103508,-406.01 ,406.01 ,2204,Contract Cleaning,1024,Eastwood,11.57 
Nottinghamshire Fire and Rescue Service ,100557,NCC Sundry Debtors,NCC Sundry Debtors,Operational Responses,4,202308,01/11/2022,P6,9103508,-406.01 ,406.01 ,2204,Contract Cleaning,1026,Arnold,15.42 
Nottinghamshire Fire and Rescue Service ,100557,NCC Sundry Debtors,NCC Sundry Debtors,Operational Responses,4,202308,01/11/2022,P6,9103508,-406.01 ,406.01 ,2204,Contract Cleaning,1027,Carlton,15.42 
Nottinghamshire Fire and Rescue Service ,100557,NCC Sundry Debtors,NCC Sundry Debtors,Operational Responses,4,202308,01/11/2022,P6,9103508,-406.01 ,406.01 ,2204,Contract Cleaning,1028,East Leake,11.57 
Nottinghamshire Fire and Rescue Service ,100557,NCC Sundry Debtors,NCC Sundry Debtors,Operational Responses,4,202308,01/11/2022,P6,9103508,-406.01 ,406.01 ,2204,Contract Cleaning,1029,Highfields Station,15.42 
Nottinghamshire Fire and Rescue Service ,100557,NCC Sundry Debtors,NCC Sundry Debtors,Management & Support Services,4,202308,01/11/2022,P6,9103508,-406.01 ,406.01 ,2204,Contract Cleaning,1030,Service Development Centre,34.69 
Nottinghamshire Fire and Rescue Service ,100557,NCC Sundry Debtors,NCC Sundry Debtors,Operational Responses,4,202308,01/11/2022,P6,9103510,"-33,678.30 ","33,678.30 ",2204,Contract Cleaning,1001,Mansfield,"2,336.96 "
Nottinghamshire Fire and Rescue Service ,100557,NCC Sundry Debtors,NCC Sundry Debtors,Operational Responses,4,202308,01/11/2022,P6,9103510,"-33,678.30 ","33,678.30 ",2204,Contract Cleaning,1002,Blidworth,132.59 
Nottinghamshire Fire and Rescue Service ,100557,NCC Sundry Debtors,NCC Sundry Debtors,Operational Responses,4,202308,01/11/2022,P6,9103510,"-33,678.30 ","33,678.30 ",2204,Contract Cleaning,1003,London Road,"2,579.47 "
Nottinghamshire Fire and Rescue Service ,100557,NCC Sundry Debtors,NCC Sundry Debtors,Operational Responses,4,202308,01/11/2022,P6,9103510,"-33,678.30 ","33,678.30 ",2204,Contract Cleaning,1005,Ashfield,"1,309.26 "
Nottinghamshire Fire and Rescue Service ,100557,NCC Sundry Debtors,NCC Sundry Debtors,Operational Responses,4,202308,01/11/2022,P6,9103510,"-33,678.30 ","33,678.30 ",2204,Contract Cleaning,1006,Edwinstowe,"1,010.88 "
Nottinghamshire Fire and Rescue Service ,100557,NCC Sundry Debtors,NCC Sundry Debtors,Operational Responses,4,202308,01/11/2022,P6,9103510,"-33,678.30 ","33,678.30 ",2204,Contract Cleaning,1007,Warsop,165.59 
Nottinghamshire Fire and Rescue Service ,100557,NCC Sundry Debtors,NCC Sundry Debtors,Operational Responses,4,202308,01/11/2022,P6,9103510,"-33,678.30 ","33,678.30 ",2204,Contract Cleaning,1008,Worksop,"1,645.61 "
Nottinghamshire Fire and Rescue Service ,100557,NCC Sundry Debtors,NCC Sundry Debtors,Operational Responses,4,202308,01/11/2022,P6,9103510,"-33,678.30 ","33,678.30 ",2204,Contract Cleaning,1010,Harworth,331.27 
Nottinghamshire Fire and Rescue Service ,100557,NCC Sundry Debtors,NCC Sundry Debtors,Operational Responses,4,202308,01/11/2022,P6,9103510,"-33,678.30 ","33,678.30 ",2204,Contract Cleaning,1011,Misterton,265.08 
Nottinghamshire Fire and Rescue Service ,100557,NCC Sundry Debtors,NCC Sundry Debtors,Operational Responses,4,202308,01/11/2022,P6,9103510,"-33,678.30 ","33,678.30 ",2204,Contract Cleaning,1012,Retford,"1,673.76 "
Nottinghamshire Fire and Rescue Service ,100557,NCC Sundry Debtors,NCC Sundry Debtors,Operational Responses,4,202308,01/11/2022,P6,9103510,"-33,678.30 ","33,678.30 ",2204,Contract Cleaning,1013,Tuxford,198.69 
Nottinghamshire Fire and Rescue Service ,100557,NCC Sundry Debtors,NCC Sundry Debtors,Operational Responses,4,202308,01/11/2022,P6,9103510,"-33,678.30 ","33,678.30 ",2204,Contract Cleaning,1014,Southwell,298.18 
Nottinghamshire Fire and Rescue Service ,100557,NCC Sundry Debtors,NCC Sundry Debtors,Operational Responses,4,202308,01/11/2022,P6,9103510,"-33,678.30 ","33,678.30 ",2204,Contract Cleaning,1015,Collingham,298.18 
Nottinghamshire Fire and Rescue Service ,100557,NCC Sundry Debtors,NCC Sundry Debtors,Operational Responses,4,202308,01/11/2022,P6,9103510,"-33,678.30 ","33,678.30 ",2204,Contract Cleaning,1016,Newark,"1,309.26 "
Nottinghamshire Fire and Rescue Service ,100557,NCC Sundry Debtors,NCC Sundry Debtors,Operational Responses,4,202308,01/11/2022,P6,9103510,"-33,678.30 ","33,678.30 ",2204,Contract Cleaning,1017,Bingham,198.88 
Nottinghamshire Fire and Rescue Service ,100557,NCC Sundry Debtors,NCC Sundry Debtors,Operational Responses,4,202308,01/11/2022,P6,9103510,"-33,678.30 ","33,678.30 ",2204,Contract Cleaning,1019,West Bridgford,"2,005.00 "
Nottinghamshire Fire and Rescue Service ,100557,NCC Sundry Debtors,NCC Sundry Debtors,Operational Responses,4,202308,01/11/2022,P6,9103510,"-33,678.30 ","33,678.30 ",2204,Contract Cleaning,1020,Stockhill,"1,640.62 "
Nottinghamshire Fire and Rescue Service ,100557,NCC Sundry Debtors,NCC Sundry Debtors,Operational Responses,4,202308,01/11/2022,P6,9103510,"-33,678.30 ","33,678.30 ",2204,Contract Cleaning,1023,Stapleford,496.91 
Nottinghamshire Fire and Rescue Service ,100557,NCC Sundry Debtors,NCC Sundry Debtors,Operational Responses,4,202308,01/11/2022,P6,9103510,"-33,678.30 ","33,678.30 ",2204,Contract Cleaning,1024,Eastwood,331.22 
Nottinghamshire Fire and Rescue Service ,100557,NCC Sundry Debtors,NCC Sundry Debtors,Operational Responses,4,202308,01/11/2022,P6,9103510,"-33,678.30 ","33,678.30 ",2204,Contract Cleaning,1026,Arnold,"1,226.43 "
Nottinghamshire Fire and Rescue Service ,100557,NCC Sundry Debtors,NCC Sundry Debtors,Operational Responses,4,202308,01/11/2022,P6,9103510,"-33,678.30 ","33,678.30 ",2204,Contract Cleaning,1027,Carlton,"2,303.82 "
Nottinghamshire Fire and Rescue Service ,100557,NCC Sundry Debtors,NCC Sundry Debtors,Operational Responses,4,202308,01/11/2022,P6,9103510,"-33,678.30 ","33,678.30 ",2204,Contract Cleaning,1028,East Leake,198.74 
Nottinghamshire Fire and Rescue Service ,100557,NCC Sundry Debtors,NCC Sundry Debtors,Operational Responses,4,202308,01/11/2022,P6,9103510,"-33,678.30 ","33,678.30 ",2204,Contract Cleaning,1029,Highfields Station,"4,319.04 "
Nottinghamshire Fire and Rescue Service ,100557,NCC Sundry Debtors,NCC Sundry Debtors,Management & Support Services,4,202308,01/11/2022,P6,9103510,"-33,678.30 ","33,678.30 ",2204,Contract Cleaning,1030,Service Development Centre,"1,789.81 "
Nottinghamshire Fire and Rescue Service ,100557,NCC Sundry Debtors,NCC Sundry Debtors,Management & Support Services,4,202308,08/11/2022,P6,9103511,-770.64 ,770.64 ,2204,Contract Cleaning,1035,Headquarters,642.20 
Nottinghamshire Fire and Rescue Service ,100557,NCC Sundry Debtors,NCC Sundry Debtors,Management & Support Services,4,202308,16/11/2022,P6,9103552,-405.60 ,405.60 ,2204,Contract Cleaning,1035,Headquarters,338.00 
Nottinghamshire Fire and Rescue Service ,100557,NCC Sundry Debtors,NCC Sundry Debtors,Operational Responses,4,202308,01/11/2022,P6,9103512,-409.48 ,409.48 ,2205,Window Cleaning,1001,Mansfield,19.27 
Nottinghamshire Fire and Rescue Service ,100557,NCC Sundry Debtors,NCC Sundry Debtors,Operational Responses,4,202308,01/11/2022,P6,9103512,-409.48 ,409.48 ,2205,Window Cleaning,1002,Blidworth,11.57 
Nottinghamshire Fire and Rescue Service ,100557,NCC Sundry Debtors,NCC Sundry Debtors,Operational Responses,4,202308,01/11/2022,P6,9103512,-409.48 ,409.48 ,2205,Window Cleaning,1003,London Road,23.13 
Nottinghamshire Fire and Rescue Service ,100557,NCC Sundry Debtors,NCC Sundry Debtors,Operational Responses,4,202308,01/11/2022,P6,9103512,-409.48 ,409.48 ,2205,Window Cleaning,1005,Ashfield,11.57 
Nottinghamshire Fire and Rescue Service ,100557,NCC Sundry Debtors,NCC Sundry Debtors,Operational Responses,4,202308,01/11/2022,P6,9103512,-409.48 ,409.48 ,2205,Window Cleaning,1006,Edwinstowe,17.35 
Nottinghamshire Fire and Rescue Service ,100557,NCC Sundry Debtors,NCC Sundry Debtors,Operational Responses,4,202308,01/11/2022,P6,9103512,-409.48 ,409.48 ,2205,Window Cleaning,1007,Warsop,9.64 
Nottinghamshire Fire and Rescue Service ,100557,NCC Sundry Debtors,NCC Sundry Debtors,Operational Responses,4,202308,01/11/2022,P6,9103512,-409.48 ,409.48 ,2205,Window Cleaning,1008,Worksop,11.57 
Nottinghamshire Fire and Rescue Service ,100557,NCC Sundry Debtors,NCC Sundry Debtors,Operational Responses,4,202308,01/11/2022,P6,9103512,-409.48 ,409.48 ,2205,Window Cleaning,1010,Harworth,11.57 
Nottinghamshire Fire and Rescue Service ,100557,NCC Sundry Debtors,NCC Sundry Debtors,Operational Responses,4,202308,01/11/2022,P6,9103512,-409.48 ,409.48 ,2205,Window Cleaning,1011,Misterton,11.57 
Nottinghamshire Fire and Rescue Service ,100557,NCC Sundry Debtors,NCC Sundry Debtors,Operational Responses,4,202308,01/11/2022,P6,9103512,-409.48 ,409.48 ,2205,Window Cleaning,1012,Retford,15.42 
Nottinghamshire Fire and Rescue Service ,100557,NCC Sundry Debtors,NCC Sundry Debtors,Operational Responses,4,202308,01/11/2022,P6,9103512,-409.48 ,409.48 ,2205,Window Cleaning,1013,Tuxford,9.64 
Nottinghamshire Fire and Rescue Service ,100557,NCC Sundry Debtors,NCC Sundry Debtors,Operational Responses,4,202308,01/11/2022,P6,9103512,-409.48 ,409.48 ,2205,Window Cleaning,1014,Southwell,9.64 
Nottinghamshire Fire and Rescue Service ,100557,NCC Sundry Debtors,NCC Sundry Debtors,Operational Responses,4,202308,01/11/2022,P6,9103512,-409.48 ,409.48 ,2205,Window Cleaning,1015,Collingham,11.57 
Nottinghamshire Fire and Rescue Service ,100557,NCC Sundry Debtors,NCC Sundry Debtors,Operational Responses,4,202308,01/11/2022,P6,9103512,-409.48 ,409.48 ,2205,Window Cleaning,1016,Newark,11.57 
Nottinghamshire Fire and Rescue Service ,100557,NCC Sundry Debtors,NCC Sundry Debtors,Operational Responses,4,202308,01/11/2022,P6,9103512,-409.48 ,409.48 ,2205,Window Cleaning,1017,Bingham,11.57 
Nottinghamshire Fire and Rescue Service ,100557,NCC Sundry Debtors,NCC Sundry Debtors,Operational Responses,4,202308,01/11/2022,P6,9103512,-409.48 ,409.48 ,2205,Window Cleaning,1019,West Bridgford,13.49 
Nottinghamshire Fire and Rescue Service ,100557,NCC Sundry Debtors,NCC Sundry Debtors,Operational Responses,4,202308,01/11/2022,P6,9103512,-409.48 ,409.48 ,2205,Window Cleaning,1020,Stockhill,17.35 
Nottinghamshire Fire and Rescue Service ,100557,NCC Sundry Debtors,NCC Sundry Debtors,Operational Responses,4,202308,01/11/2022,P6,9103512,-409.48 ,409.48 ,2205,Window Cleaning,1023,Stapleford,11.57 
Nottinghamshire Fire and Rescue Service ,100557,NCC Sundry Debtors,NCC Sundry Debtors,Operational Responses,4,202308,01/11/2022,P6,9103512,-409.48 ,409.48 ,2205,Window Cleaning,1024,Eastwood,11.57 
Nottinghamshire Fire and Rescue Service ,100557,NCC Sundry Debtors,NCC Sundry Debtors,Operational Responses,4,202308,01/11/2022,P6,9103512,-409.48 ,409.48 ,2205,Window Cleaning,1026,Arnold,11.57 
Nottinghamshire Fire and Rescue Service ,100557,NCC Sundry Debtors,NCC Sundry Debtors,Operational Responses,4,202308,01/11/2022,P6,9103512,-409.48 ,409.48 ,2205,Window Cleaning,1027,Carlton,15.42 
Nottinghamshire Fire and Rescue Service ,100557,NCC Sundry Debtors,NCC Sundry Debtors,Operational Responses,4,202308,01/11/2022,P6,9103512,-409.48 ,409.48 ,2205,Window Cleaning,1028,East Leake,11.57 
Nottinghamshire Fire and Rescue Service ,100557,NCC Sundry Debtors,NCC Sundry Debtors,Operational Responses,4,202308,01/11/2022,P6,9103512,-409.48 ,409.48 ,2205,Window Cleaning,1029,Highfields Station,38.55 
Nottinghamshire Fire and Rescue Service ,100557,NCC Sundry Debtors,NCC Sundry Debtors,Management & Support Services,4,202308,01/11/2022,P6,9103512,-409.48 ,409.48 ,2205,Window Cleaning,1030,Service Development Centre,13.49 
Nottinghamshire Fire and Rescue Service ,100856,Arthur J Gallagher,Arthur J Gallagher,Management & Support Services,1,202308,13/10/2022,P6,9103368,"-2,507.30 ","2,507.30 ",2890,Insurance - Premises,2063,Risk Management & Insurance,"2,507.30 "
Nottinghamshire Fire and Rescue Service ,102277,Mansfield Fire Station Museum,Mansfield Fire Station Museum,Operational Responses,1,202308,09/11/2022,P6,9103405,"-1,064.00 ","1,064.00 ",2890,Insurance - Premises,2078,Mansfield Fire Station Museum,"1,064.00 "
Nottinghamshire Fire and Rescue Service ,101100,Angloco Limited,Angloco Limited,Management & Support Services,1,202308,31/12/2021,P6,9103388,"-1,458.67 ","1,458.67 ",3100,Fleet Maintenance - Planned,2084,Engineering,"1,215.56 "
Nottinghamshire Fire and Rescue Service ,103820,VIA East Midlands Ltd,VIA East Midlands Ltd,Management & Support Services,5,202308,03/11/2022,P6,9103445,"-5,678.91 ","5,678.91 ",3100,Fleet Maintenance - Planned,2084,Engineering,"4,750.19 "
Nottinghamshire Fire and Rescue Service ,103820,VIA East Midlands Ltd,VIA East Midlands Ltd,Management & Support Services,5,202308,02/11/2022,P6,9103447,"-2,907.07 ","2,907.07 ",3100,Fleet Maintenance - Planned,2084,Engineering,"2,422.56 "
Nottinghamshire Fire and Rescue Service ,103820,VIA East Midlands Ltd,VIA East Midlands Ltd,Management & Support Services,5,202308,09/11/2022,P6,9103504,"-6,443.55 ","6,443.55 ",3100,Fleet Maintenance - Planned,2084,Engineering,"5,378.51 "
Nottinghamshire Fire and Rescue Service ,103045,Mitchell Diesel Limited,Mitchell Diesel Limited,Management & Support Services,5,202308,07/11/2022,P6,9103332,"-8,204.08 ","8,204.08 ",3102,Vehicle Maintenance Outsourced,2084,Engineering,"6,836.73 "
Nottinghamshire Fire and Rescue Service ,102228,Keltruck Limited,Keltruck Limited,Management & Support Services,1,202308,06/07/2022,P6,9103347,"-1,362.90 ","1,362.90 ",3102,Vehicle Maintenance Outsourced,2084,Engineering,"1,135.75 "
Nottinghamshire Fire and Rescue Service ,102228,Keltruck Limited,Keltruck Limited,Management & Support Services,1,202308,31/10/2022,P6,9103355,-474.67 ,474.67 ,3102,Vehicle Maintenance Outsourced,2084,Engineering,395.56 
Nottinghamshire Fire and Rescue Service ,101100,Angloco Limited,Angloco Limited,Management & Support Services,1,202308,30/04/2022,P6,9103389,-518.83 ,518.83 ,3102,Vehicle Maintenance Outsourced,2084,Engineering,432.36 
Nottinghamshire Fire and Rescue Service ,101100,Angloco Limited,Angloco Limited,Management & Support Services,1,202308,28/05/2022,P6,9103390,"-1,604.28 ","1,604.28 ",3102,Vehicle Maintenance Outsourced,2084,Engineering,"1,336.90 "
Nottinghamshire Fire and Rescue Service ,102228,Keltruck Limited,Keltruck Limited,Management & Support Services,1,202308,02/11/2022,P6,9103527,"-4,164.00 ","4,164.00 ",3102,Vehicle Maintenance Outsourced,2084,Engineering,"3,470.00 "
Nottinghamshire Fire and Rescue Service ,102228,Keltruck Limited,Keltruck Limited,Management & Support Services,1,202308,22/11/2022,P6,9103542,"-1,062.68 ","1,062.68 ",3102,Vehicle Maintenance Outsourced,2084,Engineering,885.57 
Nottinghamshire Fire and Rescue Service ,102951,Logistics UK,Logistics UK,Management & Support Services,5,202308,17/11/2022,P6,9103601,-509.69 ,509.69 ,3102,Vehicle Maintenance Outsourced,2084,Engineering,424.74 
Nottinghamshire Fire and Rescue Service ,102228,Keltruck Limited,Keltruck Limited,Management & Support Services,1,202308,05/08/2022,P6,9103530,"1,362.90 ","-1,362.90 ",3102,Vehicle Maintenance Outsourced,2084,Engineering,"-1,135.75 "
Nottinghamshire Fire and Rescue Service ,102228,Keltruck Limited,Keltruck Limited,Management & Support Services,1,202308,02/11/2022,P6,9103317,"-30,864.97 ","30,864.97 ",3103,Fleet Maintenance - Unplanned,2084,Engineering,"25,720.81 "
Nottinghamshire Fire and Rescue Service ,103820,VIA East Midlands Ltd,VIA East Midlands Ltd,Management & Support Services,5,202308,03/11/2022,P6,9103444,"-22,140.58 ","22,140.58 ",3103,Fleet Maintenance - Unplanned,2084,Engineering,"18,450.48 "
Nottinghamshire Fire and Rescue Service ,103820,VIA East Midlands Ltd,VIA East Midlands Ltd,Management & Support Services,5,202308,02/11/2022,P6,9103446,"-12,375.35 ","12,375.35 ",3103,Fleet Maintenance - Unplanned,2084,Engineering,"10,312.79 "
Nottinghamshire Fire and Rescue Service ,103820,VIA East Midlands Ltd,VIA East Midlands Ltd,Management & Support Services,5,202308,09/11/2022,P6,9103502,"-19,148.02 ","19,148.02 ",3103,Fleet Maintenance - Unplanned,2084,Engineering,"15,956.68 "
Nottinghamshire Fire and Rescue Service ,102569,TSI Flowmeters Ltd,TSI Flowmeters Ltd,Management & Support Services,1,202308,21/11/2022,P6,9103528,"-10,434.00 ","10,434.00 ",3103,Fleet Maintenance - Unplanned,2084,Engineering,"10,434.00 "
Nottinghamshire Fire and Rescue Service ,103820,VIA East Midlands Ltd,VIA East Midlands Ltd,Management & Support Services,5,202308,03/11/2022,P6,9103443,"-1,906.08 ","1,906.08 ",3104,Fleet - Accident Repairs,2084,Engineering,"1,588.40 "
Nottinghamshire Fire and Rescue Service ,103766,CERTAS,CERTAS,Operational Responses,5,202308,02/11/2022,P6,9103316,"-16,573.72 ","16,573.72 ",3200,Fuel - Vehicle,1008,Worksop,"13,811.43 "
Nottinghamshire Fire and Rescue Service ,103766,CERTAS,CERTAS,Operational Responses,5,202308,15/11/2022,P6,9103524,"-14,251.76 ","14,251.76 ",3200,Fuel - Vehicle,1001,Mansfield,"11,876.47 "
Nottinghamshire Fire and Rescue Service ,103766,CERTAS,CERTAS,Operational Responses,5,202308,15/11/2022,P6,9103525,"-12,432.10 ","12,432.10 ",3200,Fuel - Vehicle,1029,Highfields Station,"10,360.08 "
Nottinghamshire Fire and Rescue Service ,103766,CERTAS,CERTAS,Operational Responses,5,202308,16/11/2022,P6,9103526,"-12,090.22 ","12,090.22 ",3200,Fuel - Vehicle,1019,West Bridgford,"10,075.18 "
Nottinghamshire Fire and Rescue Service ,103766,CERTAS,CERTAS,Operational Responses,5,202308,25/11/2022,P6,9103636,"-12,357.90 ","12,357.90 ",3200,Fuel - Vehicle,1020,Stockhill,"10,298.25 "
Nottinghamshire Fire and Rescue Service ,103942,The Lodge Tyre Co. Limited,The Lodge Tyre Co. Limited,Management & Support Services,5,202308,31/10/2022,P6,9103327,"-1,864.03 ","1,864.03 ",3202,Tyres,2084,Engineering,"1,553.36 "
Nottinghamshire Fire and Rescue Service ,103943,Teletrac Navman (UK) Limited,Teletrac Navman (UK) Limited,Management & Support Services,5,202308,01/11/2022,P6,9103349,"-1,071.96 ","1,071.96 ",3203,Motor Tax / Licenses,2084,Engineering,893.30 
Nottinghamshire Fire and Rescue Service ,100321,Drivercheck Ltd,Drivercheck Ltd,Management & Support Services,1,202308,30/09/2022,P6,9103354,-444.00 ,444.00 ,3203,Motor Tax / Licenses,2084,Engineering,370.00 
Nottinghamshire Fire and Rescue Service ,104128,LeasePlan UK Limited,LeasePlan UK Limited,Management & Support Services,5,202308,19/10/2022,P6,9103367,"-1,107.78 ","1,107.78 ",3400,Hire of Fleet Vehicles,2084,Engineering,923.16 
Nottinghamshire Fire and Rescue Service ,100202,Enterprise Rent-A-Car,Enterprise Rent-A-Car,Management & Support Services,1,202308,10/10/2022,P6,9103457,-269.15 ,269.15 ,3400,Hire of Fleet Vehicles,2084,Engineering,224.29 
Nottinghamshire Fire and Rescue Service ,102531,Ferno (U K) Limited,Ferno (U K) Limited,Management & Support Services,1,202308,02/11/2022,P6,9103312,"-2,619.10 ","2,619.10 ",4000,Operational Equipment Purchase,2084,Engineering,"2,182.58 "
Nottinghamshire Fire and Rescue Service ,102464,Scott Health & Safety Limited,Scott Health & Safety Limited,Management & Support Services,1,202308,12/10/2022,P6,9103485,-921.60 ,921.60 ,4000,Operational Equipment Purchase,1030,Service Development Centre,768.00 
Nottinghamshire Fire and Rescue Service ,101190,Lyon Equipment Limited,Lyon Equipment Limited,Management & Support Services,1,202308,24/11/2022,P6,9103614,"-1,191.36 ","1,191.36 ",4000,Operational Equipment Purchase,2084,Engineering,992.80 
Nottinghamshire Fire and Rescue Service ,103094,Draeger Safety UK Limited,Draeger Safety UK Limited,Management & Support Services,5,202308,31/10/2022,P6,9103479,-912.00 ,912.00 ,4002,Breathing Apparatus,2084,Engineering,760.00 
Nottinghamshire Fire and Rescue Service ,103094,Draeger Safety UK Limited,Draeger Safety UK Limited,Management & Support Services,5,202308,29/07/2022,P6,9103559,"-2,100.00 ","2,100.00 ",4002,Breathing Apparatus,2059,Corporate Training,"1,750.00 "
Nottinghamshire Fire and Rescue Service ,102203,Flogas Britian Limited,Flogas Britian Limited,Management & Support Services,1,202308,15/11/2022,P6,9103523,"-1,173.22 ","1,173.22 ",4006,Oxygen and Other Gases,2084,Engineering,977.68 
Nottinghamshire Fire and Rescue Service ,103443,Terberg DTS UK Limited,Terberg DTS UK Limited,Management & Support Services,5,202308,30/09/2022,P6,9103478,-602.84 ,602.84 ,4008,Equipment Reative Maintenance,2084,Engineering,502.37 
Nottinghamshire Fire and Rescue Service ,103483,Risual Limited,Risual Limited,Management & Support Services,5,202308,15/10/2022,P6,9103402,-262.99 ,262.99 ,4101,Computer Software Maintenance Contracts,2095,ICT Digital Transformation,219.16 
Nottinghamshire Fire and Rescue Service ,102215,Performance Monitoring Systems Ltd,Performance Monitoring Systems Ltd,Management & Support Services,1,202308,14/11/2022,P6,9103456,"-7,200.00 ","7,200.00 ",4101,Computer Software Maintenance Contracts,2097,ICT Service Operations,"6,000.00 "
Nottinghamshire Fire and Rescue Service ,104113,"Zoom Video Communications, Inc.","Zoom Video Communications, Inc.",Management & Support Services,5,202308,28/10/2022,P6,9103532,"-1,599.00 ","1,599.00 ",4101,Computer Software Maintenance Contracts,2097,ICT Service Operations,"1,599.00 "
Nottinghamshire Fire and Rescue Service ,103814,Ergo Computing UK,Ergo Computing UK,Management & Support Services,5,202308,15/11/2022,P6,9103494,-449.77 ,449.77 ,4102,Computer Consumables,2097,ICT Service Operations,374.81 
Nottinghamshire Fire and Rescue Service ,100289,Home Office,Home Office,Management & Support Services,4,202308,01/11/2022,P6,9103438,"-61,320.68 ","61,320.68 ",4204,FireLink Contract Charges,2097,ICT Service Operations,"51,100.57 "
Nottinghamshire Fire and Rescue Service ,103092,Daisy Corporate Services Trading Limited,Daisy Corporate Services Trading Limited,Management & Support Services,1,202308,01/11/2022,P6,9103314,"-1,556.64 ","1,556.64 ",4301,Phones - Landline,2096,ICT Service Transformation,"1,297.20 "
Nottinghamshire Fire and Rescue Service ,102420,BT PLC,BT PLC,Management & Support Services,1,202308,07/09/2022,P6,9103491,"-1,242.87 ","1,242.87 ",4301,Phones - Landline,2097,ICT Service Operations,"1,035.73 "
Nottinghamshire Fire and Rescue Service ,101802,EE,EE,Management & Support Services,1,202308,01/11/2022,P6,9103492,"-3,981.78 ","3,981.78 ",4302,Phones - Mobiles,2097,ICT Service Operations,"3,318.15 "
Nottinghamshire Fire and Rescue Service ,103887,PageOne Communications Limited - Part Of Capita plc,PageOne Communications Limited - Part Of Capita plc,Management & Support Services,5,202308,11/11/2022,P6,9103496,"-8,548.80 ","8,548.80 ",4303,Pagers,2097,ICT Service Operations,"7,124.00 "
Nottinghamshire Fire and Rescue Service ,104045,Smalley's Gentleman's Outfitters,Smalley's Gentleman's Outfitters,Management & Support Services,10,202308,26/09/2022,P6,9103296,"-5,523.00 ","5,523.00 ",4400,Clothing and Uniform,2086,Procurement,"5,523.00 "
Nottinghamshire Fire and Rescue Service ,102376,Bristol Uniforms Limited,Bristol Uniforms Limited,Management & Support Services,1,202308,30/10/2022,P6,9103554,"-10,087.10 ","10,087.10 ",4402,Uniform and Protectice Clothing Repairs,2086,Procurement,"3,781.64 "
Nottinghamshire Fire and Rescue Service ,102376,Bristol Uniforms Limited,Bristol Uniforms Limited,Management & Support Services,1,202308,31/08/2022,P6,9103560,"-15,842.46 ","15,842.46 ",4402,Uniform and Protectice Clothing Repairs,2086,Procurement,"10,017.60 "
Nottinghamshire Fire and Rescue Service ,102376,Bristol Uniforms Limited,Bristol Uniforms Limited,Management & Support Services,1,202308,30/10/2022,P6,9103554,"-10,087.10 ","10,087.10 ",4403,Laundry and Dry Cleaning,2086,Procurement,"4,624.28 "
Nottinghamshire Fire and Rescue Service ,102376,Bristol Uniforms Limited,Bristol Uniforms Limited,Management & Support Services,1,202308,31/08/2022,P6,9103560,"-15,842.46 ","15,842.46 ",4403,Laundry and Dry Cleaning,2086,Procurement,"3,184.45 "
Nottinghamshire Fire and Rescue Service ,103678,Fitness Warehouse Limited t/a Gym Gear,Fitness Warehouse Limited t/a Gym Gear,Management & Support Services,5,202308,21/11/2022,P6,9103633,-877.20 ,877.20 ,4510,Fitness Equipment,2061,Occupational Health & Fitness,731.00 
Nottinghamshire Fire and Rescue Service ,103625,Respiratory Protective Assessment Limited,Respiratory Protective Assessment Limited,Management & Support Services,5,202308,14/11/2022,P6,9103473,-927.60 ,927.60 ,4512,Medical Equipment Maintenance,2061,Occupational Health & Fitness,45.00 
Nottinghamshire Fire and Rescue Service ,103625,Respiratory Protective Assessment Limited,Respiratory Protective Assessment Limited,Management & Support Services,5,202308,14/11/2022,P6,9103473,-927.60 ,927.60 ,4512,Medical Equipment Maintenance,2061,Occupational Health & Fitness,728.00 
Nottinghamshire Fire and Rescue Service ,103358,JSMTC (Joint Service Mountain Training Centre),JSMTC (Joint Service Mountain Training Centre),Management & Support Services,5,202308,14/10/2022,P6,9103393,-277.45 ,277.45 ,4523,Catering/Food & Beverages,2059,Corporate Training,231.21 
Nottinghamshire Fire and Rescue Service ,103695,Pulp Friction Smoothie Bar CIC,Pulp Friction Smoothie Bar CIC,Management & Support Services,5,202308,27/11/2022,P6,9103624,-396.00 ,396.00 ,4523,Catering/Food & Beverages,2050,Corporate Support,330.00 
Nottinghamshire Fire and Rescue Service ,103695,Pulp Friction Smoothie Bar CIC,Pulp Friction Smoothie Bar CIC,Fire Service Emergency Planning & Civil Defence,5,202308,27/11/2022,P6,9103625,-604.80 ,604.80 ,4523,Catering/Food & Beverages,2009,Resiliance & Emergency Planning,504.00 
Nottinghamshire Fire and Rescue Service ,100468,Specialised Canvas Group,Specialised Canvas Group,Management & Support Services,1,202308,02/11/2022,P6,9103546,-597.10 ,597.10 ,4534,Carriage and Packaging,2086,Procurement,26.53 
Nottinghamshire Fire and Rescue Service ,102306,Northern Diver (International) Ltd,Northern Diver (International) Ltd,Management & Support Services,1,202308,10/11/2022,P6,9103557,-289.80 ,289.80 ,4534,Carriage and Packaging,2086,Procurement,9.50 
Nottinghamshire Fire and Rescue Service ,101844,Nottinghamshire Relate,Nottinghamshire Relate,Management & Support Services,1,202308,06/07/2022,P6,9103404,-600.00 ,600.00 ,4552,Occupational Health Costs,2061,Occupational Health & Fitness,600.00 
Nottinghamshire Fire and Rescue Service ,104232,Dr Shaun Austin Ltd,Dr Shaun Austin Ltd,Management & Support Services,10,202308,04/07/2022,P6,9103408,-960.00 ,960.00 ,4552,Occupational Health Costs,2061,Occupational Health & Fitness,960.00 
Nottinghamshire Fire and Rescue Service ,104232,Dr Shaun Austin Ltd,Dr Shaun Austin Ltd,Management & Support Services,10,202308,08/11/2022,P6,9103439,-968.95 ,968.95 ,4552,Occupational Health Costs,2061,Occupational Health & Fitness,968.95 
Nottinghamshire Fire and Rescue Service ,101844,Nottinghamshire Relate,Nottinghamshire Relate,Management & Support Services,1,202308,10/11/2022,P6,9103466,"-1,600.00 ","1,600.00 ",4552,Occupational Health Costs,2061,Occupational Health & Fitness,"1,600.00 "
Nottinghamshire Fire and Rescue Service ,102218,Kays Medical Ltd,Kays Medical Ltd,Management & Support Services,5,202308,17/11/2022,P6,9103618,-277.22 ,277.22 ,4552,Occupational Health Costs,2061,Occupational Health & Fitness,231.02 
Nottinghamshire Fire and Rescue Service ,103799,Bishop Property Consultants Ltd,Bishop Property Consultants Ltd,Management & Support Services,5,202308,16/11/2022,P6,9103505,"-2,340.00 ","2,340.00 ",4553,Professional Fees - Estates Related,2087,Estates Department (Previously Premises),"1,950.00 "
Nottinghamshire Fire and Rescue Service ,101000,C F S Messing Account Stockhill,C F S Messing Account Stockhill,Operational Responses,8,202308,31/08/2022,P6,9103303,-386.00 ,386.00 ,4560,Subsistence,1020,Stockhill,386.00 
Nottinghamshire Fire and Rescue Service ,101000,C F S Messing Account Stockhill,C F S Messing Account Stockhill,Operational Responses,8,202308,30/11/2022,P6,9103424,-273.00 ,273.00 ,4560,Subsistence,1020,Stockhill,273.00 
Nottinghamshire Fire and Rescue Service ,100778,Fire Service College Ltd,Fire Service College Ltd,Prevention and Education ,4,202308,04/11/2022,P6,9103369,"-3,348.00 ","3,348.00 ",4561,Overnight Accomodation,2026,Fire Investigation,400.00 
Nottinghamshire Fire and Rescue Service ,101851,Complete Business Solutions Group Ltd,Complete Business Solutions Group Ltd,Management & Support Services,1,202308,31/10/2022,P6,9103323,"-6,153.00 ","6,153.00 ",4583,Marketing and Publicity,2051,Corporate Communications,"6,153.00 "
Nottinghamshire Fire and Rescue Service ,103860,Debora Link Creative,Debora Link Creative,Management & Support Services,5,202308,27/09/2022,P6,9103431,"-1,235.00 ","1,235.00 ",4583,Marketing and Publicity,2054,Equalities Team,"1,235.00 "
Nottinghamshire Fire and Rescue Service ,101851,Complete Business Solutions Group Ltd,Complete Business Solutions Group Ltd,Management & Support Services,1,202308,23/11/2022,P6,9103621,-480.00 ,480.00 ,4583,Marketing and Publicity,2075,Service Support Hub,480.00 
Nottinghamshire Fire and Rescue Service ,102073,B D Motor Spares,B D Motor Spares,Operational Responses,1,202308,06/11/2022,P6,9103348,"-1,320.00 ","1,320.00 ",4594,Training/ Teaching Equipment,1005,Ashfield,660.00 
Nottinghamshire Fire and Rescue Service ,102073,B D Motor Spares,B D Motor Spares,Operational Responses,1,202308,06/11/2022,P6,9103348,"-1,320.00 ","1,320.00 ",4594,Training/ Teaching Equipment,1016,Newark,220.00 
Nottinghamshire Fire and Rescue Service ,102073,B D Motor Spares,B D Motor Spares,Management & Support Services,1,202308,06/11/2022,P6,9103348,"-1,320.00 ","1,320.00 ",4594,Training/ Teaching Equipment,2059,Corporate Training,220.00 
Nottinghamshire Fire and Rescue Service ,100290,Lemaitre Ltd,Lemaitre Ltd,Management & Support Services,1,202308,07/11/2022,P6,9103487,"-1,960.80 ","1,960.80 ",4594,Training/ Teaching Equipment,2059,Corporate Training,50.00 
Nottinghamshire Fire and Rescue Service ,100290,Lemaitre Ltd,Lemaitre Ltd,Management & Support Services,1,202308,07/11/2022,P6,9103487,"-1,960.80 ","1,960.80 ",4594,Training/ Teaching Equipment,2059,Corporate Training,"1,584.00 "
Nottinghamshire Fire and Rescue Service ,102107,Bits At Micks,Bits At Micks,Operational Responses,1,202308,31/08/2022,P6,9103638,"-1,829.52 ","1,829.52 ",4594,Training/ Teaching Equipment,1003,London Road,217.80 
Nottinghamshire Fire and Rescue Service ,102107,Bits At Micks,Bits At Micks,Operational Responses,1,202308,31/08/2022,P6,9103638,"-1,829.52 ","1,829.52 ",4594,Training/ Teaching Equipment,1003,London Road,435.60 
Nottinghamshire Fire and Rescue Service ,102107,Bits At Micks,Bits At Micks,Operational Responses,1,202308,31/08/2022,P6,9103638,"-1,829.52 ","1,829.52 ",4594,Training/ Teaching Equipment,1017,Bingham,217.80 
Nottinghamshire Fire and Rescue Service ,102107,Bits At Micks,Bits At Micks,Operational Responses,1,202308,31/08/2022,P6,9103638,"-1,829.52 ","1,829.52 ",4594,Training/ Teaching Equipment,1020,Stockhill,217.80 
Nottinghamshire Fire and Rescue Service ,102107,Bits At Micks,Bits At Micks,Operational Responses,1,202308,31/08/2022,P6,9103638,"-1,829.52 ","1,829.52 ",4594,Training/ Teaching Equipment,1024,Eastwood,217.80 
Nottinghamshire Fire and Rescue Service ,102107,Bits At Micks,Bits At Micks,Operational Responses,1,202308,31/10/2022,P6,9103639,"-1,306.80 ","1,306.80 ",4594,Training/ Teaching Equipment,1003,London Road,435.60 
Nottinghamshire Fire and Rescue Service ,102107,Bits At Micks,Bits At Micks,Operational Responses,1,202308,31/10/2022,P6,9103639,"-1,306.80 ","1,306.80 ",4594,Training/ Teaching Equipment,1020,Stockhill,217.80 
Nottinghamshire Fire and Rescue Service ,102107,Bits At Micks,Bits At Micks,Operational Responses,1,202308,31/10/2022,P6,9103639,"-1,306.80 ","1,306.80 ",4594,Training/ Teaching Equipment,1029,Highfields Station,217.80 
Nottinghamshire Fire and Rescue Service ,102107,Bits At Micks,Bits At Micks,Operational Responses,1,202308,30/09/2022,P6,9103640,"-1,306.80 ","1,306.80 ",4594,Training/ Teaching Equipment,1026,Arnold,435.60 
Nottinghamshire Fire and Rescue Service ,102107,Bits At Micks,Bits At Micks,Operational Responses,1,202308,30/09/2022,P6,9103640,"-1,306.80 ","1,306.80 ",4594,Training/ Teaching Equipment,1027,Carlton,435.60 
Nottinghamshire Fire and Rescue Service ,102107,Bits At Micks,Bits At Micks,Management & Support Services,1,202308,30/09/2022,P6,9103640,"-1,306.80 ","1,306.80 ",4594,Training/ Teaching Equipment,2059,Corporate Training,217.80 
Nottinghamshire Fire and Rescue Service ,103849,Vision Support Services Ltd,Vision Support Services Ltd,Management & Support Services,5,202308,03/11/2022,P6,9103513,-611.76 ,611.76 ,4600,Community Safety Delivery Consumables,2068,Prevention,509.80 
Nottinghamshire Fire and Rescue Service ,102107,Bits At Micks,Bits At Micks,Management & Support Services,1,202308,31/08/2022,P6,9103638,"-1,829.52 ","1,829.52 ",4600,Community Safety Delivery Consumables,2068,Prevention,217.80 
Nottinghamshire Fire and Rescue Service ,102306,Northern Diver (International) Ltd,Northern Diver (International) Ltd,Management & Support Services,1,202308,27/07/2022,P6,9103366,480.00 ,-480.00 ,4611,Stock Adjustments,2086,Procurement,-400.00 
Nottinghamshire Fire and Rescue Service ,101712,Browne Jacobson LLP,Browne Jacobson LLP,Management & Support Services,1,202308,27/10/2022,P6,9103540,"-4,329.12 ","4,329.12 ",7002,Legal Services,2058,HR Support,"3,000.00 "
Nottinghamshire Fire and Rescue Service ,101712,Browne Jacobson LLP,Browne Jacobson LLP,Management & Support Services,1,202308,27/10/2022,P6,9103540,"-4,329.12 ","4,329.12 ",7002,Legal Services,2087,Estates Department (Previously Premises),67.60 
Nottinghamshire Fire and Rescue Service ,104070,Apollo Signs & Engraving,Apollo Signs & Engraving,Management & Support Services,5,202308,31/10/2022,P6,9103313,-792.00 ,792.00 ,B314,Stock  ,9999,Default,660.00 
Nottinghamshire Fire and Rescue Service ,102864,William Sugden & sons Limited,William Sugden & sons Limited,Management & Support Services,5,202308,27/10/2022,P6,9103360,-455.77 ,455.77 ,B314,Stock  ,9999,Default,379.81 
Nottinghamshire Fire and Rescue Service ,100357,Eastern Shires Purchasing Organisation,Eastern Shires Purchasing Organisation,Management & Support Services,1,202308,31/10/2022,P6,9103364,-477.13 ,477.13 ,B314,Stock  ,9999,Default,397.61 
Nottinghamshire Fire and Rescue Service ,102190,Dot Promotional Clothing,Dot Promotional Clothing,Management & Support Services,1,202308,16/11/2022,P6,9103500,-380.88 ,380.88 ,B314,Stock  ,9999,Default,317.40 
Nottinghamshire Fire and Rescue Service ,102190,Dot Promotional Clothing,Dot Promotional Clothing,Management & Support Services,1,202308,16/11/2022,P6,9103501,-380.88 ,380.88 ,B314,Stock  ,9999,Default,317.40 
Nottinghamshire Fire and Rescue Service ,100468,Specialised Canvas Group,Specialised Canvas Group,Management & Support Services,1,202308,02/11/2022,P6,9103546,-597.10 ,597.10 ,B314,Stock  ,9999,Default,471.05 
Nottinghamshire Fire and Rescue Service ,100299,FireAngel Safety Technology Limited,FireAngel Safety Technology Limited,Management & Support Services,1,202308,03/11/2022,P6,9103548,"-1,869.12 ","1,869.12 ",B314,Stock  ,9999,Default,"1,557.60 "
Nottinghamshire Fire and Rescue Service ,102190,Dot Promotional Clothing,Dot Promotional Clothing,Management & Support Services,1,202308,16/11/2022,P6,9103550,-507.84 ,507.84 ,B314,Stock  ,9999,Default,423.20 
Nottinghamshire Fire and Rescue Service ,103981,Joseph Gleave and Son Limited -Joseph Gleave and Son (Holdings) Limited,Joseph Gleave and Son Limited -Joseph Gleave and Son (Holdings) Limited,Management & Support Services,5,202308,17/11/2022,P6,9103553,"-2,214.24 ","2,214.24 ",B314,Stock  ,9999,Default,"1,845.20 "
Nottinghamshire Fire and Rescue Service ,102306,Northern Diver (International) Ltd,Northern Diver (International) Ltd,Management & Support Services,1,202308,10/11/2022,P6,9103557,-289.80 ,289.80 ,B314,Stock  ,9999,Default,232.00 
Nottinghamshire Fire and Rescue Service ,102218,Kays Medical Ltd,Kays Medical Ltd,Management & Support Services,5,202308,21/07/2022,P6,9103617,-327.89 ,327.89 ,B314,Stock  ,9999,Default,273.24 
Nottinghamshire Fire and Rescue Service ,102280,Amptron Electrical Services,Amptron Electrical Services,Management & Support Services,1,202308,30/09/2022,P6,9103415,"-117,663.84 ","117,663.84 ",C101,Building Works,4101,Non Operational Buildings Improvements & Refurbishments,"98,053.20 "
Nottinghamshire Fire and Rescue Service ,102051,Johnsons Business Moves,Johnsons Business Moves,Management & Support Services,1,202308,31/10/2022,P6,9103455,"-1,902.00 ","1,902.00 ",C107,Business Moves,2087,Estates Department (Previously Premises),"1,585.00 "
Nottinghamshire Fire and Rescue Service ,104229,YMD Boon Ltd,YMD Boon Ltd,Management & Support Services,5,202308,25/11/2022,P6,9103641,"-3,252.02 ","3,252.02 ",C154,Professional Fees - Design,4101,Non Operational Buildings Improvements & Refurbishments,"2,710.02 "
Nottinghamshire Fire and Rescue Service ,102757,Turner and Townsend Project Management,Turner and Townsend Project Management,Management & Support Services,5,202308,29/07/2022,P6,9103475,-336.00 ,336.00 ,C156,Professional Fees - Construction Design Management,4102,Strategic New Build Projects,280.00 
Nottinghamshire Fire and Rescue Service ,101712,Browne Jacobson LLP,Browne Jacobson LLP,Management & Support Services,1,202308,27/10/2022,P6,9103540,"-4,329.12 ","4,329.12 ",C157,Professional Fees - Legal,4102,Strategic New Build Projects,6.00 
Nottinghamshire Fire and Rescue Service ,101712,Browne Jacobson LLP,Browne Jacobson LLP,Management & Support Services,1,202308,27/10/2022,P6,9103540,"-4,329.12 ","4,329.12 ",C157,Professional Fees - Legal,4102,Strategic New Build Projects,534.00 
Nottinghamshire Fire and Rescue Service ,100467,Kingsfield Computer Products Ltd,Kingsfield Computer Products Ltd,Management & Support Services,1,202308,10/11/2022,P6,9103417,"-1,857.60 ","1,857.60 ",C200,Hardware,4300,ICT Capital Programme,"1,548.00 "
Nottinghamshire Fire and Rescue Service ,103814,Ergo Computing UK,Ergo Computing UK,Management & Support Services,5,202308,15/11/2022,P6,9103495,"-1,821.31 ","1,821.31 ",C200,Hardware,4300,ICT Capital Programme,"1,517.76 "
Nottinghamshire Fire and Rescue Service ,103257,Midland HR,Midland HR,Management & Support Services,5,202308,27/09/2022,P6,9103337,"-9,360.00 ","9,360.00 ",C202,Consultancy and Services,4300,ICT Capital Programme,"7,800.00 "
Nottinghamshire Fire and Rescue Service ,104218,FireServiceRota B.V.,FireServiceRota B.V.,Management & Support Services,5,202308,01/10/2022,P6,9103463,"-18,625.00 ","18,625.00 ",C202,Consultancy and Services,4300,ICT Capital Programme,"18,625.00 "
,***Note:,,,,,,,,,,,,,,,
,"***The report shows the payment in its original form. This means disaggregating many invoices into individual component payments many of which will be less than £250 in their own right. This explains why you will see many of the amounts showing less than £250. They were, however, paid as part of an invoice of £250 or more.

**** The Invoice date is the date issued on the invoice. This date may fall out of the date range for the report. In most cases this is due to the invoice being received  late.",,,,,,,,,,,,,,,